Workbook

Sheet Cover
F1: ILLINOIS STATE BOARD OF EDUCATION
F2: School Business Services Division
A3: Accounting Basis: | N3: ='DeficitBudgetSum Calc 19'!C9 & " " -> Unbalanced budget, however, a deficit reduction plan is not required at this time.
F4: SCHOOL DISTRICT BUDGET FORM *
B5: X | C5: Cash | F5: July 1, 2014 - June 30, 2015
C6: Accrual
C10: Date of Amended Budget:
G11: (MM/DD/YY)
C13: District Name: | G13: PAW PAW CUSD #271
C14: District RCDT No: | G14: 47-052-2710-26
A16: If your FY14 AFR states that you need to do a deficit reduction plan and your FY15 budget is balanced please state the measures you took to have your budget become balanced. (Bckgrnd-Assumpt 25-26)
D24: =G13 -> PAW PAW CUSD #271 | K24: , County of | M24: LEE AND DEKALB | Q24: ,
H25: 2014-07-01 | M25: 2015-06-30 | Q25: .
H27: =D24 -> PAW PAW CUSD #271 | Q27: ,
A28: County of | D28: =M24 -> LEE AND DEKALB | G28: ,
K31: 15TH | L31: day of | M31: SEPTEMBER | O31: , 20 | P31: 14 | Q31: ,
D33: =H25 -> 2014-07-01 | I33: =M25 -> 2015-06-30 | L33: .
O36: 15TH
D37: SEPTEMBER | G37: 14 | K37: 5 | N37: 0
D41: MEMBERS VOTING YEA: | J41: MEMBERS VOTING NAY:
C53: * | D53: Based on the 23 Illinois Administrative Code-Part 100 and inconformity with Section 17-1 of the School Code.
C54: (1) | D54: A certified copy of this document must be filed with the county clerk within 30 days of adoption as required
D55: by Section 18-50 of the Property Tax Code (35 ILCS 200/18-50).
C56: (2) | D56: Districts are required to submit the adopted/amended budget electronically to ISBE within 30 days of adoption or by October 31,
D57: whichever comes first. Budgets are submitted to: www.isbe.net/sfms/budget/2014/budget.htm. The electronic version does
D58: not require member signatures.
C61: ISBE 50-36 SB2015 | E61: Updated 5/1/14
C62: =G13 -> PAW PAW CUSD #271
C63: =G14 -> 47-052-2710-26

Sheet BudgetSum 2-3
A1: Begin entering data on EstRev 5-10 and EstExp 11-17 tabs. | C1: (10) | D1: (20) | E1: (30) | F1: (40) | G1: (50) | H1: (60) | I1: (70) | J1: (80) | K1: (90)
A2: ='EstRev 5-10'!A2 -> Description | B2: Acct # | C2: Educational | D2: Operations & Maintenance | E2: Debt Service | F2: Transportation | G2: Municipal Retirement/ Social Security | H2: Capital Projects | I2: Working Cash | J2: Tort | K2: Fire Prevention & Safety
A3: ESTIMATED BEGINNING FUND BALANCE July 1, 2014 1 | C3: 203192 | D3: 355 | E3: 158205 | F3: 26619 | G3: 42132 | H3: 57613 | I3: 158368 | J3: 46143 | K3: 1114
A4: RECEIPTS/REVENUES
A5: LOCAL SOURCES | B5: 1000 | C5: ='EstRev 5-10'!C109 -> 1657749 | D5: ='EstRev 5-10'!D109 -> 246899 | E5: ='EstRev 5-10'!E109 -> 543268 | F5: ='EstRev 5-10'!F109 -> 98025 | G5: ='EstRev 5-10'!G109 -> 139891 | H5: ='EstRev 5-10'!H109 -> 0 | I5: ='EstRev 5-10'!I109 -> 13637 | J5: ='EstRev 5-10'!J109 -> 89971 | K5: ='EstRev 5-10'!K109 -> 1105
A6: FLOW-THROUGH RECEIPTS/REVENUES FROM ONE DISTRICT TO ANOTHER DISTRICT | B6: 2000 | C6: ='EstRev 5-10'!C114 -> 0 | D6: ='EstRev 5-10'!D114 -> 0 | F6: ='EstRev 5-10'!F114 -> 0 | G6: ='EstRev 5-10'!G114 -> 0
A7: STATE SOURCES | B7: 3000 | C7: ='EstRev 5-10'!C173 -> 434000 | D7: ='EstRev 5-10'!D173 -> 0 | E7: ='EstRev 5-10'!E173 -> 0 | F7: ='EstRev 5-10'!F173 -> 155000 | G7: ='EstRev 5-10'!G173 -> 0 | H7: ='EstRev 5-10'!H173 -> 0 | I7: ='EstRev 5-10'!I173 -> 0 | J7: ='EstRev 5-10'!J173 -> 0 | K7: ='EstRev 5-10'!K173 -> 0
A8: FEDERAL SOURCES | B8: 4000 | C8: ='EstRev 5-10'!C273 -> 152562 | D8: ='EstRev 5-10'!D273 -> 0 | E8: ='EstRev 5-10'!E273 -> 0 | F8: ='EstRev 5-10'!F273 -> 0 | G8: ='EstRev 5-10'!G273 -> 0 | H8: ='EstRev 5-10'!H273 -> 0 | I8: ='EstRev 5-10'!I273 -> 0 | J8: ='EstRev 5-10'!J273 -> 0 | K8: ='EstRev 5-10'!K273 -> 0
A9: Total Direct Receipts/Revenues 8 | C9: =SUM(C5:C8) -> 2244311 | D9: =SUM(D5:D8) -> 246899 | E9: 543268 | F9: 253025 | G9: 139891 | H9: 0 | I9: 13637 | J9: 89971 | K9: 1105
A10: Receipts/Revenues for "On Behalf" Payments 2 | B10: 3998 | C10: 422964 | D10: 0 | E10: 0 | F10: 0 | G10: 0 | H10: 0 | J10: 0 | K10: 0
A11: Total Receipts/Revenues | C11: =SUM(C9:C10) -> 2667275 | D11: =SUM(D9:D10) -> 246899 | E11: 543268 | F11: 253025 | G11: 139891 | H11: 0 | I11: 13637 | J11: 89971 | K11: 1105
A12: DISBURSEMENTS/EXPENDITURES
A13: INSTRUCTION | B13: 1000 | C13: ='EstExp 11-17'!K33 -> 1353535 | G13: ='EstExp 11-17'!K223 -> 33689
A14: SUPPORT SERVICES | B14: 2000 | C14: ='EstExp 11-17'!K74 -> 797163 | D14: ='EstExp 11-17'!K129 -> 328127 | F14: ='EstExp 11-17'!K178 -> 178934 | G14: ='EstExp 11-17'!K273 -> 72320 | H14: ='EstExp 11-17'!K296 -> 0 | J14: ='EstExp 11-17'!K323 -> 85251 | K14: ='EstExp 11-17'!K341 -> 0
A15: COMMUNITY SERVICES | B15: 3000 | C15: ='EstExp 11-17'!K75 -> 0 | D15: ='EstExp 11-17'!K130 -> 0 | F15: ='EstExp 11-17'!K179 -> 0 | G15: ='EstExp 11-17'!K274 -> 0
A16: PAYMENTS TO OTHER DISTRICTS & GOVT UNITS | B16: 4000 | C16: ='EstExp 11-17'!K102 -> 189386 | D16: ='EstExp 11-17'!K138 -> 0 | E16: ='EstExp 11-17'!K154 -> 0 | F16: ='EstExp 11-17'!K190 -> 0 | G16: ='EstExp 11-17'!K278 -> 0 | H16: ='EstExp 11-17'!K303 -> 0 | K16: ='EstExp 11-17'!K344 -> 0
A17: DEBT SERVICES | B17: 5000 | C17: ='EstExp 11-17'!K112 -> 0 | D17: ='EstExp 11-17'!K148 -> 0 | E17: ='EstExp 11-17'!K166 -> 517300 | F17: ='EstExp 11-17'!K202 -> 0 | G17: ='EstExp 11-17'!K286 -> 0 | J17: ='EstExp 11-17'!K329 -> 0 | K17: ='EstExp 11-17'!K352 -> 0
A18: PROVISION FOR CONTINGENCIES | B18: 6000 | C18: ='EstExp 11-17'!K113 -> 0 | D18: ='EstExp 11-17'!K149 -> 0 | E18: ='EstExp 11-17'!K167 -> 0 | F18: ='EstExp 11-17'!K203 -> 0 | G18: ='EstExp 11-17'!K287 -> 0 | H18: ='EstExp 11-17'!K304 -> 0 | J18: ='EstExp 11-17'!K330 -> 0 | K18: ='EstExp 11-17'!K353 -> 0
A19: Total Direct Disbursements/Expenditures 9 | C19: =SUM(C13:C18) -> 2340084 | D19: 328127 | E19: 517300 | F19: 178934 | G19: 106009 | H19: 0 | J19: =SUM(J13:J18) -> 85251 | K19: =SUM(K13:K18) -> 0
A20: Disbursements/Expenditures for "On Behalf" Payments 2 | B20: 4180 | C20: =C10 -> 422964 | D20: 0 | E20: 0 | F20: 0 | G20: 0 | H20: 0 | J20: =J10 -> 0 | K20: =K10 -> 0
A21: Total Disbursements/Expenditures | C21: =SUM(C19:C20) -> 2763048 | D21: 328127 | E21: 517300 | F21: 178934 | G21: 106009 | H21: 0 | J21: =SUM(J19:J20) -> 85251 | K21: =SUM(K19:K20) -> 0
A22: Excess of Direct Receipts/Revenues Over (Under) Direct Disbursements/Expenditures | C22: =C9-C19 -> -95773 | D22: =D9-D19 -> -81228 | E22: 25968 | F22: 74091 | G22: 33882 | H22: 0 | I22: 13637 | J22: 4720 | K22: 1105
A23: OTHER SOURCES/USES OF FUNDS
A24: OTHER SOURCES OF FUNDS (7000)
A25: PERMANENT TRANSFER FROM VARIOUS FUNDS
A26: Abolishment the Working Cash Fund 16 | B26: 7110
A27: Abatement of the Working Cash Fund 16 | B27: 7110 | C27: 250000
A28: Transfer of Working Cash Fund Interest | B28: 7120
A29: Transfer Among Funds | B29: 7130 | D29: 140000
A30: Transfer of Interest | B30: 7140
A31: Transfer from Capital Projects Fund to O&M Fund | B31: 7150 | D31: =H54 -> 0
A32: Transfer of Excess Fire Prev & Safety Tax & Interest 3 Proceeds to O&M Fund | B32: 7160 | D32: =K55 -> 0
A33: Transfer of Excess Accumulated Fire Prev & Safety Bond and Int 3a Proceeds to Debt Service Fund | B33: 7170 | E33: =K56 -> 0
A34: SALE OF BONDS (7200)
A35: Principal on Bonds Sold 4 | B35: 7210 | I35: 1000000
A36: Premium on Bonds Sold | B36: 7220
A37: Accrued Interest on Bonds Sold | B37: 7230
A38: Sale or Compensation for Fixed Assets 5 | B38: 7300
A39: Transfer to Debt Service to Pay Principal on Capital Leases | B39: 7400 | E39: =SUM(C57:H60) -> 0
A40: Transfer to Debt Service Fund to Pay Interest on Capital Leases | B40: 7500 | E40: =SUM(C61:H64) -> 0
A41: Transfer to Debt Service Fund to Pay Principal on Revenue Bonds | B41: 7600 | E41: =SUM(C65:D68) -> 0
A42: Transfer to Debt Service Fund to Pay Interest on Revenue Bonds | B42: 7700 | E42: =SUM(C69:D72) -> 0
A43: Transfer to Capital Projects Fund | B43: 7800 | H43: =SUM(C73:D76) -> 40000
A44: ISBE Loan Proceeds | B44: 7900
A45: Other Sources Not Classified Elsewhere | B45: 7990 | D45: 40000
A46: Total Other Sources of Funds 8 | C46: =SUM(C26:C45) -> 250000 | D46: =SUM(D26:D45) -> 180000 | E46: 0 | F46: 0 | G46: 0 | H46: 40000 | I46: 1000000 | J46: 0 | K46: 0
A47: OTHER USES OF FUNDS (8000)
A49: TRANSFER TO VARIOUS OTHER FUNDS (8100)
A50: Abolishment or Abatement of the Working Cash Fund 16 | B50: 8110 | I50: =SUM(C26,C27,D27,E27,F27,G27,H27,J27,K27) -> 250000
A51: Transfer of Working Cash Fund Interest | B51: 8120 | I51: =SUM(C28:K28) -> 0
A52: Transfer Among Funds | B52: 8130 | C52: 140000
A53: Transfer of Interest 6 | B53: 8140
A54: Transfer from Capital Projects Fund to O&M Fund | B54: 8150
A55: Transfer of Excess Fire Prev & Safety Tax & Interest 3 Proceeds to O&M Fund | B55: 8160
A56: Transfer of Excess Accumulated Fire Prev & Safety Bond 3a and Int Proceeds to Debt Service Fund | B56: 8170
A57: Taxes Pledged to Pay Principal on Capital Leases | B57: 8410
A58: Grants/Reimbursements Pledged to Pay Principal on Capital Leases | B58: 8420
A59: Other Revenues Pledged to Pay Principal on Capital Leases | B59: 8430
A60: Fund Balance Transfers Pledged to Pay Principal on Capital Leases | B60: 8440
A61: Taxes Pledged to Pay Interest on Capital Leases | B61: 8510
A62: Grants/Reimbursements Pledged to Pay Interest on Capital Leases | B62: 8520
A63: Other Revenues Pledged to Pay Interest on Capital Leases | B63: 8530
A64: Fund Balance Transfers Pledged to Pay Interest on Capital Leases | B64: 8540
A65: Taxes Pledged to Pay Principal on Revenue Bonds | B65: 8610
A66: Grants/Reimbursements Pledged to Pay Principal on Revenue Bonds | B66: 8620
A67: Other Revenues Pledged to Pay Principal on Revenue Bonds | B67: 8630
A68: Fund Balance Transfers Pledged to Pay Principal on Revenue Bonds | B68: 8640
A69: Taxes Pledged to Pay Interest on Revenue Bonds | B69: 8710
A70: Grants/Reimbursements Pledged to Pay Interest on Revenue Bonds | B70: 8720
A71: Other Revenues Pledged to Pay Interest on Revenue Bonds | B71: 8730
A72: Fund Balance Transfers Pledged to Pay Interest on Revenue Bonds | B72: 8740
A73: Taxes Transferred to Pay for Capital Projects | B73: 8810
A74: Grants/Reimbursements Pledged to Pay for Capital Projects | B74: 8820 | D74: 40000
A75: Other Revenues Pledged to Pay for Capital Projects | B75: 8830
A76: Fund Balance Transfers Pledged to Pay for Capital Projects | B76: 8840
A77: Transfer to Debt Service Fund to Pay Principal on ISBE Loans | B77: 8910
A78: Other Uses Not Classified Elsewhere | B78: 8990
A79: Total Other Uses of Funds 9 | C79: =SUM(C50:C78) -> 140000 | D79: =SUM(D50:D78) -> 40000 | E79: 0 | F79: 0 | G79: 0 | H79: 0 | I79: 250000 | J79: 0 | K79: 0
A80: Total Other Sources/Uses of Fund | C80: =C46-C79 -> 110000 | D80: 140000 | E80: 0 | F80: 0 | G80: 0 | H80: 40000 | I80: 750000 | J80: 0 | K80: 0
A81: ESTIMATED ENDING FUND BALANCE June 30, 2015 | C81: =C3+C22+C80 -> 217419 | D81: 59127 | E81: 184173 | F81: 100710 | G81: 76014 | H81: 97613 | I81: 922005 | J81: 50863 | K81: 2219
A83: SUMMARY OF EXPENDITURES (by Major Object)
C84: (10) | D84: (20) | E84: (30) | F84: (40) | G84: (50) | H84: (60) | I84: (70) | J84: (80) | K84: (90)
A85: Description | B85: Acct # | C85: Educational | D85: Operations & Maintenance | E85: Debt Service | F85: Transportation | G85: Municipal Retirement/ Social Security | H85: Capital Projects | I85: Working Cash | J85: Tort | K85: Fire Prevention & Safety | L85: Total By Object
A86: Object Name
A87: Salaries | B87: 100 | C87: ='EstExp 11-17'!C114 -> 1590799 | D87: ='EstExp 11-17'!C150 -> 126322 | F87: ='EstExp 11-17'!C204 -> 71242 | H87: ='EstExp 11-17'!C305 -> 0 | J87: ='EstExp 11-17'!C331 -> 26534 | K87: ='EstExp 11-17'!C354 -> 0 | L87: =SUM(C87:K87) -> 1814897
A88: Employee Benefits | B88: 200 | C88: ='EstExp 11-17'!D114 -> 254049 | D88: ='EstExp 11-17'!D150 -> 18105 | F88: ='EstExp 11-17'!D204 -> 8692 | G88: ='EstExp 11-17'!D288 -> 106009 | H88: ='EstExp 11-17'!D305 -> 0 | J88: ='EstExp 11-17'!D331 -> 58717 | K88: ='EstExp 11-17'!D354 -> 0 | L88: 445572
A89: Purchased Services | B89: 300 | C89: ='EstExp 11-17'!E114 -> 279836 | D89: ='EstExp 11-17'!E150 -> 80400 | E89: ='EstExp 11-17'!E168 -> 0 | F89: ='EstExp 11-17'!E204 -> 55000 | H89: ='EstExp 11-17'!E305 -> 0 | J89: ='EstExp 11-17'!E331 -> 0 | K89: ='EstExp 11-17'!E354 -> 0 | L89: 415236
A90: Supplies & Materials | B90: 400 | C90: ='EstExp 11-17'!F114 -> 143900 | D90: ='EstExp 11-17'!F150 -> 85500 | F90: ='EstExp 11-17'!F204 -> 44000 | H90: ='EstExp 11-17'!F305 -> 0 | J90: ='EstExp 11-17'!F331 -> 0 | K90: ='EstExp 11-17'!F354 -> 0 | L90: 273400
A91: Capital Outlay | B91: 500 | C91: ='EstExp 11-17'!G114 -> 9200 | D91: ='EstExp 11-17'!G150 -> 4000 | F91: ='EstExp 11-17'!G204 -> 0 | H91: ='EstExp 11-17'!G305 -> 0 | J91: ='EstExp 11-17'!G331 -> 0 | K91: ='EstExp 11-17'!G354 -> 0 | L91: 13200
A92: Other Objects | B92: 600 | C92: ='EstExp 11-17'!H114 -> 62300 | D92: ='EstExp 11-17'!H150 -> 13800 | E92: ='EstExp 11-17'!H168 -> 517300 | F92: ='EstExp 11-17'!H204 -> 0 | G92: ='EstExp 11-17'!H288 -> 0 | H92: ='EstExp 11-17'!H305 -> 0 | J92: ='EstExp 11-17'!H331 -> 0 | K92: ='EstExp 11-17'!H354 -> 0 | L92: 593400
A93: Non-Capitalized Equipment | B93: 700 | C93: ='EstExp 11-17'!I114 -> 0 | D93: ='EstExp 11-17'!I150 -> 0 | F93: ='EstExp 11-17'!I204 -> 0 | H93: ='EstExp 11-17'!I305 -> 0 | J93: ='EstExp 11-17'!I331 -> 0 | K93: ='EstExp 11-17'!I354 -> 0 | L93: 0
A94: Termination Benefits | B94: 800 | C94: ='EstExp 11-17'!J114 -> 0 | D94: ='EstExp 11-17'!J150 -> 0 | F94: ='EstExp 11-17'!J204 -> 0 | L94: 0
A95: Total Expenditures | C95: =SUM(C87:C94) -> 2340084 | D95: 328127 | E95: 517300 | F95: 178934 | G95: 106009 | H95: 0 | J95: =SUM(J87:J94) -> 85251 | K95: =SUM(K87:K94) -> 0 | L95: 3555705

Sheet CashSum 4
B1: Acct # | C1: (10) | D1: (20) | E1: (30) | F1: (40) | G1: (50) | H1: (60) | I1: (70) | J1: (80) | K1: (90)
A2: ='BudgetSum 2-3'!A2 -> Description | C2: Educational | D2: Operations & Maintenance | E2: Debt Service | F2: Transportation | G2: Municipal Retirement/ Social Security | H2: Capital Projects | I2: Working Cash | J2: Tort | K2: Fire Prevention & Safety
A3: BEGINNING CASH BALANCE ON HAND July 1, 2014 7 | C3: 111829 | D3: 21105 | E3: 16046 | F3: 57582 | G3: 18141 | H3: 7613 | I3: 344760 | J3: 14143 | K3: 14
A4: Total Direct Receipts & Other Sources 8 | C4: ='BudgetSum 2-3'!C9+'BudgetSum 2-3'!C46 -> 2494311 | D4: ='BudgetSum 2-3'!D9+'BudgetSum 2-3'!D46 -> 426899 | E4: ='BudgetSum 2-3'!E9+'BudgetSum 2-3'!E46 -> 543268 | F4: ='BudgetSum 2-3'!F9+'BudgetSum 2-3'!F46 -> 253025 | G4: ='BudgetSum 2-3'!G9+'BudgetSum 2-3'!G46 -> 139891 | H4: ='BudgetSum 2-3'!H9+'BudgetSum 2-3'!H46 -> 40000 | I4: ='BudgetSum 2-3'!I9+'BudgetSum 2-3'!I46 -> 1013637 | J4: ='BudgetSum 2-3'!J9+'BudgetSum 2-3'!J46 -> 89971 | K4: ='BudgetSum 2-3'!K9+'BudgetSum 2-3'!K46 -> 1105
A5: OTHER RECEIPTS
A6: Interfund Loans Payable (Loans from Other Funds) | B6: 411
A7: Interfund Loans Receivable (Repayment of Loans) | B7: 141
A8: Notes and Warrants Payable | B8: 433
A9: Other Current Assets | B9: 199
A10: Total Other Receipts | C10: =SUM(C6:C9) -> 0 | D10: =SUM(D6:D9) -> 0 | E10: 0 | F10: 0 | G10: 0 | H10: 0 | I10: 0 | J10: 0 | K10: 0
A11: Total Direct Receipts, Other Sources, & Other Receipts | C11: =SUM(C4,C10) -> 2494311 | D11: =SUM(D4,D10) -> 426899 | E11: 543268 | F11: 253025 | G11: 139891 | H11: 40000 | I11: 1013637 | J11: 89971 | K11: 1105
A12: Total Amount Available | C12: =SUM(C3,C11) -> 2606140 | D12: =SUM(D3,D11) -> 448004 | E12: 559314 | F12: 310607 | G12: 158032 | H12: 47613 | I12: 1358397 | J12: 104114 | K12: 1119
A13: Total Direct Disbursements & Other Uses 9 | C13: =SUM('BudgetSum 2-3'!C19,'BudgetSum 2-3'!C79) -> 2480084 | D13: =SUM('BudgetSum 2-3'!D19,'BudgetSum 2-3'!D79) -> 368127 | E13: =SUM('BudgetSum 2-3'!E19,'BudgetSum 2-3'!E79) -> 517300 | F13: =SUM('BudgetSum 2-3'!F19,'BudgetSum 2-3'!F79) -> 178934 | G13: =SUM('BudgetSum 2-3'!G19,'BudgetSum 2-3'!G79) -> 106009 | H13: =SUM('BudgetSum 2-3'!H19,'BudgetSum 2-3'!H79) -> 0 | I13: =SUM('BudgetSum 2-3'!I19,'BudgetSum 2-3'!I79) -> 250000 | J13: =SUM('BudgetSum 2-3'!J19,'BudgetSum 2-3'!J79) -> 85251 | K13: =SUM('BudgetSum 2-3'!K19,'BudgetSum 2-3'!K79) -> 0
A14: OTHER DISBURSEMENTS
A15: Interfund Loans Receivable (Loans to Other Funds) 10 | B15: 141
A16: Interfund Loans Payable (Repayment of Loans) | B16: 411
A17: Notes and Warrants Payable | B17: 433
A18: Other Current Liabilities | B18: 499
A19: Total Other Disbursements | C19: =SUM(C15:C18) -> 0 | D19: 0 | E19: 0 | F19: 0 | G19: 0 | H19: 0 | I19: 0 | J19: 0 | K19: 0
A20: Total Direct Disbursements, Other Uses, & Other Disbursements | C20: =SUM(C13,C19) -> 2480084 | D20: =SUM(D13,D19) -> 368127 | E20: =SUM(E13,E19) -> 517300 | F20: 178934 | G20: 106009 | H20: 0 | I20: 250000 | J20: 85251 | K20: 0
A21: ENDING CASH BALANCE ON HAND June 30, 2015 7 | C21: =SUM(C12-C20) -> 126056 | D21: =SUM(D12-D20) -> 79877 | E21: 42014 | F21: 131673 | G21: 52023 | H21: 47613 | I21: 1108397 | J21: 18863 | K21: 1119

Sheet EstRev 5-10
C1: (10) | D1: (20) | E1: (30) | F1: (40) | G1: (50) | H1: (60) | I1: (70) | J1: (80) | K1: (90)
A2: Description | B2: Acct # | C2: Educational | D2: Operations & Maintenance | E2: Debt Service | F2: Transportation | G2: Municipal Retirement/ Social Security | H2: Capital Projects | I2: Working Cash | J2: Tort | K2: Fire Prevention & Safety
A3: RECEIPTS/REVENUES FROM LOCAL SOURCES
A4: AD VALOREM TAXES LEVIED BY LOCAL EDUCATION AGENCY
A5: Designated Purposes Levies 11 | B5: ­ | C5: 1449535 | D5: 246899 | E5: 543268 | F5: 81945 | G5: 77890 | I5: 13637 | J5: 89971 | K5: 1105
A6: Leasing Purposes Levy 12 | B6: 1130 | C6: 14998
A7: Special Education Purposes Levy | B7: 1140 | C7: 11016
A8: FICA and Medicare Only Levies | B8: 1150 | G8: 62001
A9: Area Vocational Construction Purposes Levy | B9: 1160
A10: Summer School Purposes Levy | B10: 1170
A11: Other Tax Levies (Describe & Itemize) | B11: 1190
A12: Total Ad Valorem Taxes Levied by District | C12: =SUM(C5:C11) -> 1475549 | D12: =SUM(D5:D11) -> 246899 | E12: 543268 | F12: 81945 | G12: 139891 | H12: 0 | I12: 13637 | J12: 89971 | K12: 1105
A13: PAYMENTS IN LIEU OF TAXES
A14: Mobile Home Privilege Tax | B14: 1210
A15: Payments from Local Housing Authority | B15: 1220
A16: Corporate Personal Property Replacement Taxes 13 | B16: 1230 | C16: 66150 | F16: 15750
A17: Other Payments in Lieu of Taxes (Describe & Itemize) | B17: 1290
A18: Total Payments in Lieu of Taxes | C18: =SUM(C14:C17) -> 66150 | D18: =SUM(D14:D17) -> 0 | E18: 0 | F18: 15750 | G18: 0 | H18: 0 | I18: 0 | J18: 0 | K18: 0
A19: TUITION
A20: Regular Tuition from Pupils or Parents (In State) | B20: 1311
A21: Regular Tuition from Other Districts (In State) | B21: 1312
A22: Regular Tuition from Other Sources (In State) | B22: 1313
A23: Regular Tuition from Other Sources (Out of State) | B23: 1314
A24: Summer School Tuition from Pupils or Parents (In State) | B24: 1321
A25: Summer School Tuition from Other Districts (In State) | B25: 1322
A26: Summer School Tuition from Other Sources (In State) | B26: 1323
A27: Summer School Tuition from Other Sources (Out of State) | B27: 1324
A28: CTE Tuition from Pupils or Parents (In State) | B28: 1331
A29: CTE Tuition from Other Districts (In State) | B29: 1332
A30: CTE Tuition from Other Sources (In State) | B30: 1333
A31: CTE Tuition from Other Sources (Out of State) | B31: 1334
A32: Special Education Tuition from Pupils or Parents (In State) | B32: 1341
A33: Special Education Tuition from Other Districts (In State) | B33: 1342
A34: Special Education Tuition from Other Sources (In State) | B34: 1343
A35: Special Education Tuition from Other Sources (Out of State) | B35: 1344
A36: Adult Tuition from Pupils or Parents (In State) | B36: 1351
A37: Adult Tuition from Other Districts (In State) | B37: 1352
A38: Adult Tuition from Other Sources (In State) | B38: 1353
A39: Adult Tuition from Other Sources (Out of State) | B39: 1354
A40: Total Tuition | C40: =SUM(C20:C39) -> 0
A41: TRANSPORTATION FEES
A42: Regular Transportation Fees from Pupils or Parents (In State) | B42: 1411
A43: Regular Transportation Fees from Other Districts (In State) | B43: 1412
A44: Regular Transportation Fees from Other Sources (In State) | B44: 1413
A45: Regular Transportation Fees from Co-curricular Activities (In State) | B45: 1415
A46: Regular Transportation Fees from Other Sources (Out of State) | B46: 1416
A47: Summer School Transportation Fees from Pupils or Parents (In State) | B47: 1421
A48: Summer School Transportation Fees from Other Districts (In State) | B48: 1422
A49: Summer School Transportation Fees from Other Sources (In State) | B49: 1423
A50: Summer School Transportation Fees from Other Sources (Out of State) | B50: 1424
A51: CTE Transportation Fees from Pupils or Parents (In State) | B51: 1431
A52: CTE Transportation Fees from Other Districts (In State) | B52: 1432
A53: CTE Transportation Fees from Other Sources (In State) | B53: 1433
A54: CTE Transportation Fees from Other Sources (Out of State) | B54: 1434
A55: Special Education Transportation Fees from Pupils or Parents (In State) | B55: 1441
A56: Special Education Transportation Fees from Other Districts (In State) | B56: 1442
A57: Special Education Transportation Fees from Other Sources (In State) | B57: 1443
A58: Special Education Transportation Fees from Other Sources (Out of State) | B58: 1444
A59: Adult Transportation Fees from Pupils or Parents (In State) | B59: 1451
A60: Adult Transportation Fees from Other Districts (In State) | B60: 1452
A61: Adult Transportation Fees from Other Sources (In State) | B61: 1453
A62: Adult Transportation Fees from Other Sources (Out of State) | B62: 1454
A63: Total Transportation Fees | F63: =SUM(F42:F62) -> 0
A64: EARNINGS ON INVESTMENTS
A65: Interest on Investments | B65: 1510 | C65: 1000 | F65: 330
A66: Gain or Loss on Sale of Investments | B66: 1520
A67: Total Earnings on Investments | C67: =SUM(C65:C66) -> 1000 | D67: =SUM(D65:D66) -> 0 | E67: 0 | F67: 330 | G67: 0 | H67: 0 | I67: 0 | J67: 0 | K67: 0
A68: FOOD SERVICE
A69: Sales to Pupils - Lunch | B69: 1611 | C69: 41000
A70: Sales to Pupils - Breakfast | B70: 1612
A71: Sales to Pupils - A la Carte | B71: 1613
A72: Sales to Pupils - Other (Describe & Itemize) | B72: 1614
A73: Sales to Adults | B73: 1620
A74: Other Food Service (Describe & Itemize) | B74: 1690
A75: Total Food Service | C75: =SUM(C69:C74) -> 41000
A76: DISTRICT/SCHOOL ACTIVITY INCOME
A77: Admissions - Athletic | B77: 1711 | C77: 6500
A78: Admissions - Other | B78: 1719
A79: Fees | B79: 1720 | C79: 11500
A80: Book Store Sales | B80: 1730
A81: Other District/School Activity Revenue (Describe & Itemize) | B81: 1790
A82: Total District/School Activity Income | C82: =SUM(C77:C81) -> 18000 | D82: =SUM(D77:D81) -> 0
A83: TEXTBOOK Income
A84: Rentals - Regular Textbooks | B84: 1811 | C84: 12000
A85: Rentals - Summer School Textbooks | B85: 1812
A86: Rentals - Adult/Continuing Education Textbooks | B86: 1813
A87: Rentals - Other (Describe) | B87: 1819
A88: Sales - Regular Textbooks | B88: 1821
A89: Sales - Summer School Textbooks | B89: 1822
A90: Sales - Adult/Continuing Education Textbooks | B90: 1823
A91: Sales - Other (Describe & Itemize) | B91: 1829
A92: Other (Describe & Itemize) | B92: 1890
A93: Total Textbooks | C93: =SUM(C84:C92) -> 12000
A94: OTHER REVENUE FROM LOCAL SOURCES
A95: Rentals | B95: 1910
A96: Contributions and Donations from Private Sources | B96: 1920
A97: Impact Fees from Municipal or County Governments | B97: 1930
A98: Services Provided Other Districts | B98: 1940
A99: Refund of Prior Years' Expenditures | B99: 1950
A100: Payments of Surplus Moneys from TIF Districts | B100: 1960
A101: Drivers' Education Fees | B101: 1970 | C101: 1450
A102: Proceeds from Vendors' Contracts | B102: 1980
A103: School Facility Occupation Tax Proceeds | B103: 1983
A104: Payment from Other Districts | B104: 1991
A105: Sale of Vocational Projects | B105: 1992
A106: Other Local Fees (Describe & Itemize) | B106: 1993 | C106: 40000
A107: Other Local Revenues (Describe & Itemize) | B107: 1999 | C107: 2600
A108: Total Other Revenue from Local Sources | C108: =SUM(C95:C107) -> 44050 | D108: =SUM(D95:D107) -> 0 | E108: 0 | F108: 0 | G108: 0 | H108: 0 | I108: 0 | J108: 0 | K108: 0
A109: Total Receipts/Revenues from Local Sources | B109: 1000 | C109: =SUM(C12,C18,C40,C63,C67,C75,C82,C93,C108) -> 1657749 | D109: =SUM(D12,D18,D40,D63,D67,D75,D82,D93,D108) -> 246899 | E109: 543268 | F109: 98025 | G109: 139891 | H109: 0 | I109: 13637 | J109: 89971 | K109: 1105
A110: FLOW-THROUGH RECEIPTS/REVENUES FROM ONE DISTRICT TO ANOTHER DISTRICT
A111: Flow-Through Revenue from State Sources | B111: 2100
A112: Flow-Through Revenue from Federal Sources | B112: 2200
A113: Other Flow-Through Revenue (Describe & Itemize) | B113: 2300
A114: Total Flow-Through Receipts/Revenues From One District to Another District | B114: 2000 | C114: =SUM(C111:C113) -> 0 | D114: =SUM(D111:D113) -> 0 | F114: =SUM(F111:F113) -> 0 | G114: =SUM(G111:G113) -> 0
A115: RECEIPTS/REVENUES FROM STATE SOURCES
A116: UNRESTRICTED GRANTS-IN-AID
A117: General State Aid (Section 18-8.05) | B117: 3001 | C117: 285000 | F117: 50000
A118: General State Aid Hold Harmless/Supplemental | B118: 3002
A119: Reorganization Incentives (Accounts 3005-3021) | B119: 3005
A120: Other Unrestricted Grants-In-Aid From State Sources (Describe & Itemize) | B120: 3099
A121: Total Unrestricted Grants-In-Aid | C121: =SUM(C117:C120) -> 285000 | D121: 0 | E121: 0 | F121: 50000 | G121: 0 | H121: 0 | J121: =SUM(J117:J120) -> 0 | K121: =SUM(K117:K120) -> 0
A122: RESTRICTED GRANTS-IN-AID
A123: SPECIAL EDUCATION
A124: Special Education - Private Facility Tuition | B124: 3100 | C124: 8000
A125: Special Education - Funding for Children Requiring Sp Ed Services | B125: 3105 | C125: 48000
A126: Special Education - Personnel | B126: 3110 | C126: 39000
A127: Special Education - Orphanage - Individual | B127: 3120
A128: Special Education - Orphanage - Summer Individual | B128: 3130
A129: Special Education - Summer School | B129: 3145
A130: Special Education - Other (Describe & Itemize) | B130: 3199
A131: Total Special Education | C131: =SUM(C124:C130) -> 95000 | D131: =SUM(D124:D130) -> 0 | F131: =SUM(F124:F130) -> 0
A132: CAREER AND TECHNICAL EDUCATION (CTE)
A133: CTE - Technical Education - Tech Prep | B133: 3200
A134: CTE - Secondary Program Improvement (CTEI) | B134: 3220 | C134: 7000
A135: CTE - WECEP | B135: 3225
A136: CTE - Agriculture Education | B136: 3235
A137: CTE - Instructor Practicum | B137: 3240
A138: CTE - Student Organizations | B138: 3270
A139: CTE - Other (Describe & Itemize) | B139: 3299
A140: Total Career and Technical Education | C140: =SUM(C133:C139) -> 7000 | D140: =SUM(D133:D139) -> 0 | G140: =SUM(G133:G139) -> 0
A141: BILINGUAL EDUCATION
A142: Bilingual Education - Downstate - TPI and TBE | B142: 3305
A143: Bilingual Education - Downstate - Transitional Bilingual Education | B143: 3310
A144: Total Bilingual Education | C144: =SUM(C142:C143) -> 0 | G144: =SUM(G142:G143) -> 0
A145: State Free Lunch & Breakfast | B145: 3360 | C145: 700
A146: School Breakfast Initiative | B146: 3365
A147: Driver Education | B147: 3370 | C147: 45000
A148: Adult Education (from ICCB) | B148: 3410
A149: Adult Education - Other (Describe & Itemize) | B149: 3499
A150: TRANSPORTATION
A151: Transportation - Regular and Vocational | B151: 3500 | F151: 105000
A152: Transportation - Special Education | B152: 3510
A153: Transportation - Other (Describe & Itemize) | B153: 3599
A154: Total Transportation | C154: =SUM(C151:C153) -> 0 | D154: =SUM(D151:D153) -> 0 | F154: =SUM(F151:F153) -> 105000 | G154: =SUM(G151:G153) -> 0
A155: Learning Improvement - Change Grants | B155: 3610
A156: Scientific Literacy | B156: 3660
A157: Truant Alternative/Optional Education | B157: 3695
A158: Early Childhood - Block Grant | B158: 3705
A159: Reading Improvement Block Grant | B159: 3715
A160: Reading Improvement Block Grant - Reading Recovery | B160: 3720
A161: Continued Reading Improvement Block Grant | B161: 3725
A162: Continued Reading Improvement Block Grant (2% Set Aside) | B162: 3726
A163: Chicago General Education Block Grant | B163: 3766
A164: Chicago Educational Services Block Grant | B164: 3767
A165: School Safety & Educational Improvement Block Grant | B165: 3775
A166: Technology - Technology for Success | B166: 3780
A167: State Charter Schools | B167: 3815
A168: Extended Learning Opportunities - Summer Bridges | B168: 3825
A169: Infrastructure Improvements - Planning/Construction | B169: 3920
A170: School Infrastructure - Maintenance Projects | B170: 3925
A171: Other Restricted Revenue from State Sources (Describe & Itemize) | B171: 3999 | C171: 1300
A172: Total Restricted Grants-In-Aid | C172: =SUM(C131,C140,C144:C149,C154:C171) -> 149000 | D172: =SUM(D131,D140,D144:D149,D154:D171) -> 0 | E172: 0 | F172: 105000 | G172: 0 | H172: 0 | I172: 0 | J172: 0 | K172: 0
A173: Total Receipts/Revenues from State Sources | B173: 3000 | C173: =SUM(C121,C172) -> 434000 | D173: =SUM(D121,D172) -> 0 | E173: 0 | F173: 155000 | G173: 0 | H173: 0 | I173: 0 | J173: 0 | K173: 0
A174: RECEIPTS/REVENUES FROM FEDERAL SOURCES
A175: UNRESTRICTED GRANTS-IN-AID RECEIVED DIRECTLY FROM FEDERAL GOVT.
A176: Federal Impact Aid | B176: 4001
A177: Other Unrestricted Grants-In-Aid Received Directly from the Federal Govt. (Describe & Itemize) | B177: 4009 | C177: 15062
A178: Total Unrestricted Grants-In-Aid Received Directly from Fed Govt | C178: =SUM(C176:C177) -> 15062 | D178: =SUM(D176:D177) -> 0 | E178: 0 | F178: 0 | G178: 0 | H178: 0 | I178: 0 | J178: 0 | K178: 0
A179: RESTRICTED GRANTS-IN-AID RECEIVED DIRECTLY FROM FEDERAL GOVT
A180: Head Start | B180: 4045
A181: Construction (Impact Aid) | B181: 4050
A182: MAGNET | B182: 4060
A183: Other Restricted Grants-In-Aid Received Directly from Federal Govt. (Describe & Itemize) | B183: 4090
A184: Total Restricted Grants-In-Aid Received Directly from Federal Govt. | C184: =SUM(C180:C183) -> 0 | D184: =SUM(D180:D183) -> 0 | F184: =SUM(F180:F183) -> 0 | G184: =SUM(G180:G183) -> 0 | H184: =SUM(H180:H183) -> 0 | K184: =SUM(K180:K183) -> 0
A185: RESTRICTED GRANTS-IN-AID RECEIVED FROM FEDERAL GOVT. THRU THE STATE
A186: TITLE VI
A187: Title VI - Innovation and Flexibility Formula | B187: 4100
A188: Title VI - SEA Projects | B188: 4105
A189: Title VI - Rural Education Initiative (REI) | B189: 4107
A190: Title VI - Other (Describe & Itemize) | B190: 4199
A191: Total Title VI | C191: =SUM(C187:C190) -> 0 | D191: =SUM(D187:D190) -> 0 | F191: =SUM(F187:F190) -> 0 | G191: =SUM(G187:G190) -> 0
A192: FOOD SERVICE
A193: Breakfast Start-Up Expansion | B193: 4200
A194: National School Lunch Program | B194: 4210 | C194: 37000
A195: Special Milk Program | B195: 4215
A196: School Breakfast Program | B196: 4220
A197: Summer Food Service Admin/Program | B197: 4225
A198: Child and Adult Care Food Program | B198: 4226
A199: Fresh Fruit and Vegetables | B199: 4240
A200: Food Service - Other (Describe & Itemize) | B200: 4299
... 74 more rows

Sheet EstExp 11-17
C1: (100) | D1: (200) | E1: (300) | F1: (400) | G1: (500) | H1: (600) | I1: (700) | J1: (800) | K1: (900)
A2: ='EstRev 5-10'!A2 -> Description | B2: Funct # | C2: Salaries | D2: Employee Benefits | E2: Purchased Services | F2: Supplies & Materials | G2: Capital Outlay | H2: Other Objects | I2: Non-Capitalized Equipment | J2: Termination Benefits | K2: Total
A3: 10 - EDUCATIONAL FUND (ED)
A4: INSTRUCTION (ED)
A5: Regular Programs | B5: 1100 | C5: 718553 | D5: 92593 | E5: 15700 | F5: 51500 | G5: 1000 | H5: 900 | K5: =SUM(C5:J5) -> 880246
A6: Tuition Payment to Charter Schools | B6: 1115 | K6: =SUM(C6,E6) -> 0
A7: Pre-K Programs | B7: 1125 | K7: =SUM(C7:J7) -> 0
A8: Special Education Programs (Functions 1200 - 1220) | B8: 1200 | C8: 164559 | D8: 19945 | F8: 1000 | K8: 185504
A9: Special Education Programs Pre-K | B9: 1225 | K9: 0
A10: Remedial and Supplemental Programs K-12 | B10: 1250 | C10: 81110 | D10: 9924 | F10: 500 | K10: 91534
A11: Remedial and Supplemental Programs Pre-K | B11: 1275 | K11: 0
A12: Adult/Continuing Education Programs | B12: 1300 | K12: 0
A13: CTE Programs | B13: 1400 | C13: 88490 | D13: 15461 | E13: 600 | F13: 2300 | K13: 106851
A14: Interscholastic Programs | B14: 1500 | C14: 58000 | D14: 1000 | E14: 13000 | F14: 8700 | G14: 5000 | H14: 3700 | K14: 89400
A15: Summer School Programs | B15: 1600 | K15: 0
A16: Gifted Programs | B16: 1650 | K16: 0
A17: Driver's Education Programs | B17: 1700 | K17: 0
A18: Bilingual Programs | B18: 1800 | K18: 0
A19: Truant Alternative & Optional Programs | B19: 1900 | K19: 0
A20: Pre-K Programs - Private Tuition | B20: 1910 | K20: 0
A21: Regular K-12 Programs Private Tuition | B21: 1911 | K21: 0
A22: Special Education Programs K-12 Private Tuition | B22: 1912 | K22: 0
A23: Special Education Programs Pre-K Tuition | B23: 1913 | K23: 0
A24: Remedial/Supplemental Programs K-12 Private Tuition | B24: 1914 | K24: 0
A25: Remedial/Supplemental Programs Pre-K Private Tuition | B25: 1915 | K25: 0
A26: Adult/Continuing Education Programs Private Tuition | B26: 1916 | K26: 0
A27: CTE Programs Private Tuition | B27: 1917 | K27: 0
A28: Interscholastic Programs Private Tuition | B28: 1918 | K28: 0
A29: Summer School Programs Private Tuition | B29: 1919 | K29: 0
A30: Gifted Programs Private Tuition | B30: 1920 | K30: 0
A31: Bilingual Programs Private Tuition | B31: 1921 | K31: 0
A32: Truants Alternative/Opt Ed Programs Private Tuition | B32: 1922 | K32: 0
A33: Total Instruction14 | B33: 1000 | C33: =SUM(C5:C32) -> 1110712 | D33: =SUM(D5:D32) -> 138923 | E33: 29300 | F33: 64000 | G33: 6000 | H33: 4600 | I33: 0 | J33: 0 | K33: 1353535
A34: SUPPORT SERVICES (ED)
A35: Support Services - Pupil
A36: Attendance & Social Work Services | B36: 2110 | K36: =SUM(C36:J36) -> 0
A37: Guidance Services | B37: 2120 | C37: 33955 | D37: 2140 | K37: 36095
A38: Health Services | B38: 2130 | F38: 1000 | K38: 1000
A39: Psychological Services | B39: 2140 | K39: 0
A40: Speech Pathology & Audiology Services | B40: 2150 | C40: 33000 | D40: 4294 | F40: 200 | K40: 37494
A41: Other Support Services - Pupils (Describe & Itemize) | B41: 2190 | K41: 0
A42: Total Support Services - Pupil | B42: 2100 | C42: =SUM(C36:C41) -> 66955 | D42: =SUM(D36:D41) -> 6434 | E42: 0 | F42: 1200 | G42: 0 | H42: 0 | I42: 0 | J42: 0 | K42: 74589
A43: Support Services - Instructional Staff
A44: Improvement of Instruction Services | B44: 2210 | C44: 17689 | D44: 3983 | K44: =SUM(C44:J44) -> 21672
A45: Educational Media Services | B45: 2220 | C45: 27737 | D45: 2056 | E45: 500 | F45: 1000 | K45: =SUM(C45:J45) -> 31293
A46: Assessment & Testing | B46: 2230 | F46: 3600 | K46: =SUM(C46:J46) -> 3600
A47: Total Support Services - Instructional Staff | B47: 2200 | C47: =SUM(C44:C46) -> 45426 | D47: =SUM(D44:D46) -> 6039 | E47: 500 | F47: 4600 | G47: 0 | H47: 0 | I47: 0 | J47: 0 | K47: 56565
A48: Support Services - General Administration
A49: Board of Education Services | B49: 2310 | C49: 2400 | D49: 35 | E49: 60050 | F49: 4200 | H49: 5700 | K49: =SUM(C49:J49) -> 72385
A50: Executive Administration Services | B50: 2320 | C50: 79476 | D50: 16547 | F50: 1400 | H50: 3000 | K50: =SUM(C50:J50) -> 100423
A51: Special Area Administration Services | B51: 2330 | K51: =SUM(C51:J51) -> 0
A52: Tort Immunity Services | B52: 2360 - 2370 | K52: =SUM(C52:J52) -> 0
A53: Total Support Services - General Administration | B53: 2300 | C53: =SUM(C49:C52) -> 81876 | D53: =SUM(D49:D52) -> 16582 | E53: 60050 | F53: 5600 | G53: 0 | H53: 8700 | I53: 0 | J53: 0 | K53: 172808
A54: Support Services - School Administration
A55: Office of the Principal Services | B55: 2410 | C55: 186424 | D55: 62566 | E55: 7850 | F55: 4500 | G55: 1200 | K55: =SUM(C55:J55) -> 262540
A56: Other Support Services - School Administration (Describe & Itemize) | B56: 2490 | K56: =SUM(C56:J56) -> 0
A57: Total Support Services - School Administration | B57: 2400 | C57: =SUM(C55:C56) -> 186424 | D57: =SUM(D55:D56) -> 62566 | E57: 7850 | F57: 4500 | G57: 1200 | H57: 0 | I57: 0 | J57: 0 | K57: =SUM(K55:K56) -> 262540
A58: Support Services - Business
A59: Direction of Business Support Services | B59: 2510 | K59: =SUM(C59:J59) -> 0
A60: Fiscal Services | B60: 2520 | C60: 36779 | D60: 10095 | K60: 46874
A61: Operation & Maintenance of Plant Services | B61: 2540 | E61: 24900 | K61: 24900
A62: Pupil Transportation Services | B62: 2550 | K62: 0
A63: Food Services | B63: 2560 | C63: 35127 | D63: 4553 | E63: 850 | F63: 54000 | G63: 2000 | K63: 96530
A64: Internal Services | B64: 2570 | K64: 0
A65: Total Support Services - Business | B65: 2500 | C65: =SUM(C59:C64) -> 71906 | D65: =SUM(D59:D64) -> 14648 | E65: 25750 | F65: 54000 | G65: 2000 | H65: 0 | I65: 0 | J65: 0 | K65: 168304
A66: Support Services - Central
A67: Direction of Central Support Services | B67: 2610 | K67: =SUM(C67:J67) -> 0
A68: Planning, Research, Development & Evaluation Services | B68: 2620 | K68: =SUM(C68:J68) -> 0
A69: Information Services | B69: 2630 | C69: 27500 | D69: 8857 | E69: 16000 | F69: 10000 | K69: 62357
A70: Staff Services | B70: 2640 | K70: 0
A71: Data Processing Services | B71: 2660 | K71: 0
A72: Total Support Services - Central | B72: 2600 | C72: =SUM(C67:C71) -> 27500 | D72: =SUM(D67:D71) -> 8857 | E72: 16000 | F72: 10000 | G72: 0 | H72: 0 | I72: 0 | J72: 0 | K72: =SUM(K67:K71) -> 62357
A73: Other Support Services (Describe & Itemize) | B73: 2900 | K73: 0
A74: Total Support Services | B74: 2000 | C74: =SUM(C42,C47,C53,C57,C65,C72,C73) -> 480087 | D74: 115126 | E74: 110150 | F74: 79900 | G74: 3200 | H74: 8700 | I74: 0 | J74: 0 | K74: 797163
A75: COMMUNITY SERVICES (ED) | B75: 3000 | K75: 0
A76: PAYMENTS TO OTHER DISTRICTS & GOVT UNITS (ED)
A77: Payments to Other Govt Units (In-State)
A78: Payments for Regular Programs | B78: 4110 | K78: =SUM(C78:J78) -> 0
A79: Payments for Special Education Programs | B79: 4120 | E79: 140386 | K79: 140386
A80: Payments for Adult/Continuing Education Programs | B80: 4130 | K80: 0
A81: Payments for CTE Programs | B81: 4140 | H81: 49000 | K81: 49000
A82: Payments for Community College Programs | B82: 4170 | K82: 0
A83: Other Payments to In-State Govt Units (Describe & Itemize) | B83: 4190 | K83: 0
A84: Total Payments to Districts and Other Govt Units (In-State) | B84: 4100 | E84: =SUM(E78:E83) -> 140386 | H84: =SUM(H78:H83) -> 49000 | K84: =SUM(K78:K83) -> 189386
A85: Payments for Regular Programs - Tuition | B85: 4210 | K85: =SUM(C85:J85) -> 0
A86: Payments for Special Education Programs - Tuition | B86: 4220 | K86: =SUM(C86:J86) -> 0
A87: Payments for Adult/Continuing Education Programs - Tuition | B87: 4230 | K87: 0
A88: Payments for CTE Programs - Tuition | B88: 4240 | K88: 0
A89: Payments for Community College Programs - Tuition | B89: 4270 | K89: 0
A90: Payments for Other Programs - Tuition | B90: 4280 | K90: 0
A91: Other Payments to In-State Govt Units (Describe & Itemize) | B91: 4290 | K91: 0
A92: Total Payments to Other Dist & Govt Units - Tuition (In State) | B92: 4200 | H92: =SUM(H85:H91) -> 0 | K92: =SUM(K85:K91) -> 0
A93: Payments for Regular Programs - Transfers | B93: 4310 | K93: 0
A94: Payments for Special Education Programs - Transfers | B94: 4320 | K94: 0
A95: Payments for Adult/Continuing Ed Programs - Transfers | B95: 4330 | K95: 0
A96: Payments for CTE Programs - Transfers | B96: 4340 | K96: 0
A97: Payments for Community College Program - Transfers | B97: 4370 | K97: 0
A98: Payments for Other Programs - Transfers | B98: 4380 | K98: 0
A99: Other Payments to In-State Govt Units - Transfers (Describe & Itemize | B99: 4390 | K99: 0
A100: Total Payments to Other District & Govt Units - Transfers (In State) | B100: 4300 | E100: =SUM(E93:E99) -> 0 | H100: =SUM(H93:H99) -> 0 | K100: =SUM(K93:K99) -> 0
A101: Payments to Other District & Govt Units (Out of State) | B101: 4400 | K101: =SUM(C101:J101) -> 0
A102: Total Payments to Other District & Govt Units | B102: 4000 | E102: =SUM(E84,E92,E100,E101) -> 140386 | H102: =SUM(H84,H92,H100,H101) -> 49000 | K102: =SUM(K84,K92,K100,K101) -> 189386
A103: DEBT SERVICE (ED)
A104: Debt Service - Interest on Short-Term Debt
A105: Tax Anticipation Warrants | B105: 5110 | K105: =SUM(C105:J105) -> 0
A106: Tax Anticipation Notes | B106: 5120 | K106: =SUM(C106:J106) -> 0
A107: Corporate Personal Property Repl Tax Anticipated Notes | B107: 5130 | K107: =SUM(C107:J107) -> 0
A108: State Aid Anticipation Certificates | B108: 5140 | K108: =SUM(C108:J108) -> 0
A109: Other Interest on Short-Term Debt (Describe & Itemize) | B109: 5150 | K109: =SUM(C109:J109) -> 0
A110: Total Debt Service - Interest on Short-Term Debt | B110: 5100 | H110: =SUM(H105:H109) -> 0 | K110: =SUM(K105:K109) -> 0
A111: Debt Service - Interest on Long-Term Debt | B111: 5200 | K111: =H111 -> 0
A112: Total Debt Service | B112: 5000 | H112: =SUM(H110:H111) -> 0 | K112: =SUM(K110:K111) -> 0
A113: PROVISION FOR CONTINGENCIES (ED) | B113: 6000 | K113: =SUM(C113:J113) -> 0
A114: Total Direct Disbursements/Expenditures | C114: =SUM(C33,C74,C75,C102,C112,C113,) -> 1590799 | D114: 254049 | E114: 279836 | F114: 143900 | G114: 9200 | H114: 62300 | I114: 0 | J114: 0 | K114: 2340084
A115: Excess (Deficiency) of Receipts/Revenues Over Disbursements/Expenditures | K115: ='EstRev 5-10'!C274-'EstExp 11-17'!K114 -> -95773
A117: 20 - OPERATIONS AND MAINTENANCE FUND (O&M)
A118: SUPPORT SERVICES (O&M)
A119: Support Services - Pupil
A120: Other Support Services - Pupils (Describe & Itemize) | B120: 2190 | K120: =SUM(C120:J120) -> 0
A121: Support Services - Business
A122: Direction of Business Support Services | B122: 2510 | K122: =SUM(C122:J122) -> 0
A123: Facilities Acquisition & Construction Services | B123: 2530 | K123: =SUM(C123:J123) -> 0
A124: Operation & Maintenance of Plant Services | B124: 2540 | C124: 126322 | D124: 18105 | E124: 80400 | F124: 85500 | G124: 4000 | H124: 13800 | K124: =SUM(C124:J124) -> 328127
A125: Pupil Transportation Services | B125: 2550 | K125: =SUM(C125:J125) -> 0
A126: Food Services | B126: 2560 | K126: =SUM(C126:J126) -> 0
A127: Total Support Services - Business | B127: 2500 | C127: =SUM(C122:C125) -> 126322 | D127: =SUM(D122:D125) -> 18105 | E127: =SUM(E122:E126) -> 80400 | F127: 85500 | G127: =SUM(G122:G126) -> 4000 | H127: =SUM(H122:H126) -> 13800 | I127: 0 | J127: 0 | K127: 328127
A128: Other Support Services (Describe & Itemize) | B128: 2900 | K128: =SUM(C128:J128) -> 0
A129: Total Support Services | B129: 2000 | C129: =SUM(C120,C127,C128) -> 126322 | D129: =SUM(D120,D127,D128) -> 18105 | E129: 80400 | F129: 85500 | G129: =SUM(G120,G127,G128) -> 4000 | H129: =SUM(H120,H127,H128) -> 13800 | I129: 0 | J129: 0 | K129: 328127
A130: COMMUNITY SERVICES (O&M) | B130: 3000 | K130: =SUM(C130:J130) -> 0
A131: PAYMENTS TO OTHER DISTRICTS & GOVT UNITS (O&M)
A132: Payments to Other Govt Units (In-State)
A133: Payments for Special Education Programs | B133: 4120 | K133: =SUM(C133:J133) -> 0
A134: Payments for CTE Program | B134: 4140 | K134: =SUM(C134:J134) -> 0
A135: Other Payments to In-State Govt Units (Describe & Itemize) | B135: 4190 | K135: =SUM(C135:J135) -> 0
A136: Total Payments to Other Govt Units (In-State) | B136: 4100 | E136: =SUM(E133:E135) -> 0 | H136: =SUM(H133:H135) -> 0 | K136: =SUM(K133:K135) -> 0
A137: Payments to Other Govt Units (Out of State) 14 | B137: 4400 | K137: =SUM(C137:J137) -> 0
A138: Total Payments to Other District and Govt Unit | B138: 4000 | E138: =SUM(E136:E137) -> 0 | H138: =SUM(H136:H137) -> 0 | K138: =SUM(K136:K137) -> 0
A139: DEBT SERVICE (O&M)
A140: Debt Service - Interest on Short-Term Debt
A141: Tax Anticipation Warrants | B141: 5110 | K141: =SUM(C141:J141) -> 0
A142: Tax Anticipation Notes | B142: 5120 | K142: =SUM(C142:J142) -> 0
A143: Corporate Personal Prop Repl Tax Anticipated Notes | B143: 5130 | K143: =SUM(C143:J143) -> 0
A144: State Aid Anticipation Certificates | B144: 5140 | K144: =SUM(C144:J144) -> 0
A145: Other Interest on Short-Term Debt (Describe & Itemize) | B145: 5150 | K145: =SUM(C145:J145) -> 0
A146: Total Debt Service - Interest on Short-Term Debt | B146: 5100 | H146: =SUM(H141:H145) -> 0 | K146: =SUM(K141:K145) -> 0
A147: Debt Service - Interest on Long-Term Debt | B147: 5200 | K147: =SUM(H147:J147) -> 0
A148: Total Debt Service | B148: 5000 | H148: =SUM(H146:H147) -> 0 | K148: =SUM(K146:K147) -> 0
A149: PROVISION FOR CONTINGENCIES (O&M) | B149: 6000 | K149: =SUM(C149:J149) -> 0
A150: Total Direct Disbursements/Expenditures | C150: =SUM(C129,C130,C138,C148,C149) -> 126322 | D150: =SUM(D129,D130,D138,D148,D149) -> 18105 | E150: 80400 | F150: 85500 | G150: 4000 | H150: =SUM(H129,H130,H138,H148,H149) -> 13800 | I150: 0 | J150: 0 | K150: 328127
A151: Excess (Deficiency) of Receipts/Revenues Over Disbursements/Expenditures | K151: ='EstRev 5-10'!D274-'EstExp 11-17'!K150 -> -81228
A153: 30 - DEBT SERVICE FUND (DS)
A154: PAYMENTS TO OTHER DISTRICTS & GOVT UNITS (DS) | B154: 4000 | K154: =SUM(C154:J154) -> 0
A155: DEBT SERVICE (DS)
A156: Debt Service - Interest on Short-Term Debt
A157: Tax Anticipation Warrants | B157: 5110 | K157: =SUM(C157:J157) -> 0
A158: Tax Anticipation Notes | B158: 5120 | K158: =SUM(C158:J158) -> 0
A159: Corporate Personal Prop Repl Tax Anticipation Notes | B159: 5130 | K159: 0
A160: State Aid Anticipation Certificates | B160: 5140 | K160: 0
A161: Other Interest on Short-Term Debt (Describe & Itemize) | B161: 5150 | K161: 0
A162: Total Debt Service - Interest On Short-Term Debt | B162: 5100 | H162: =SUM(H157:H161) -> 0 | K162: =SUM(K157:K161) -> 0
A163: Debt Service - Interest on Long-Term Debt | B163: 5200 | H163: 191200 | K163: 191200
A164: Debt Service - Payments of Principal on Long-Term Debt 15 (Lease/Purchase Principal Retired) | B164: 5300 | H164: 325000 | K164: 325000
A165: Debt Service Other (Describe & Itemize) | B165: 5400 | H165: 1100 | K165: =SUM(C165:J165) -> 1100
A166: Total Debt Service | B166: 5000 | E166: =SUM(E162:E165) -> 0 | H166: =SUM(H162:H165) -> 517300 | K166: =SUM(K162:K165) -> 517300
A167: PROVISION FOR CONTINGENCIES (DS) | B167: 6000 | K167: =SUM(C167:J167) -> 0
A168: Total Direct Disbursements/Expenditures | E168: =SUM(E154,E166,E167) -> 0 | H168: =SUM(H154,H166,H167) -> 517300 | K168: =SUM(K154,K166,K167) -> 517300
A169: Excess (Deficiency) of Receipts/Revenues Over Disbursements/Expenditures | K169: ='EstRev 5-10'!E274-'EstExp 11-17'!K168 -> 25968
A171: 40 - TRANSPORTATION FUND (TR)
A172: SUPPORT SERVICES (TR)
A173: Support Services - Pupils
A174: Other Support Services - Pupils (Describe & Itemize) | B174: 2190 | K174: =SUM(C174:J174) -> 0
A175: Support Services - Business
A176: Pupil Transportation Services | B176: 2550 | C176: 71242 | D176: 8692 | E176: 55000 | F176: 44000 | K176: =SUM(C176:J176) -> 178934
A177: Other Support Services (Describe & Itemize) | B177: 2900 | K177: =SUM(C177:J177) -> 0
A178: Total Support Services | B178: 2000 | C178: =SUM(C174:C177) -> 71242 | D178: =SUM(D174,D176,D177) -> 8692 | E178: 55000 | F178: 44000 | G178: 0 | H178: 0 | I178: 0 | J178: 0 | K178: 178934
A179: COMMUNITY SERVICES (TR) | B179: 3000 | K179: =SUM(C179:J179) -> 0
A180: PAYMENTS TO OTHER DISTRICTS & GOVT UNITS (TR)
A181: Payments to Other Govt Units (In-State)
A182: Payments for Regular Program | B182: 4110 | K182: =SUM(C182:J182) -> 0
A183: Payments for Special Education Programs | B183: 4120 | K183: 0
A184: Payments for Adult/Continuing Education Programs | B184: 4130 | K184: 0
A185: Payments for CTE Programs | B185: 4140 | K185: 0
A186: Payments for Community College Programs | B186: 4170 | K186: 0
A187: Other Payments to In-State Govt Units (Describe & Itemize) | B187: 4190 | K187: 0
A188: Total Payments to Other Govt Units (In-State) | B188: 4100 | E188: =SUM(E182:E187) -> 0 | H188: =SUM(H182:H187) -> 0 | K188: =SUM(K182:K187) -> 0
A189: Payments to Other Govt Units (Out-of-State) (Describe & Itemize) | B189: 4400 | K189: =SUM(C189:J189) -> 0
A190: Total Payments to Other Districts & Govt Units | B190: 4000 | E190: =SUM(E188,E189) -> 0 | H190: =SUM(H188,H189) -> 0 | K190: =SUM(K188,K189) -> 0
A191: DEBT SERVICE (TR)
A192: Debt Service - Interest on Short-Term Debt
A193: Tax Anticipation Warrants | B193: 5110 | K193: =SUM(C193:J193) -> 0
A194: Tax Anticipation Notes | B194: 5120 | K194: 0
A195: Corporate Personal Prop Repl Tax Anticipation Notes | B195: 5130 | K195: 0
A196: State Aid Anticipation Certificates | B196: 5140 | K196: 0
A197: Other Interest on Short-Term Debt (Describe and Itemize) | B197: 5150 | K197: 0
A198: Total Debt Service - Interest On Short-Term Debt | B198: 5100 | H198: =SUM(H193:H197) -> 0 | K198: 0
A199: Debt Service - Interest on Long-Term Debt | B199: 5200 | K199: =H199 -> 0
A200: Debt Service - Payments of Principal on Long-Term Debt 15 (Lease/Purchase Principal Retired) | B200: 5300 | K200: 0
A201: Debt Service - Other (Describe and Itemize) | B201: 5400 | K201: =H201 -> 0
A202: Total Debt Service | B202: 5000 | H202: =SUM(H198:H201) -> 0 | K202: =SUM(K198:K201) -> 0
A203: PROVISION FOR CONTINGENCIES (TR) | B203: 6000 | K203: =SUM(C203:J203) -> 0
... 147 more rows

Sheet Itemize 18
B2: This page is provided for detailed itemizations as requested within the body of the Report.
A5: 1 | B5: Line 45, O&M Maintenance Grant, $40,000, Other Sources Classfied Elsewhere
A6: 2 | B6: Line 171, State Library Grant, $1,300 Revenue
A7: 3 | B7: Line 271, SRSA Grant (REAP), $30,000 Revenue
A8: 4 | B8: Line 164, Debt Service, Other, $1,100, Service Charges, Expenditures
A9: 5 | B9: Line 107, Other Local Revenues, $2,600, Wireless Royalties

Sheet DeficitBudgetSum Calc 19
A2: =Cover!G13&" "&Cover!G14 -> PAW PAW CUSD #271 47-052-2710-26
A3: DEFICIT BUDGET SUMMARY INFORMATION - Operating Funds Only
B4: EDUCATIONAL | C4: OPERATIONS & MAINTENANCE | D4: TRANSPORTATION | E4: WORKING CASH | F4: TOTAL
A5: Direct Revenues | B5: ='BudgetSum 2-3'!C9 -> 2244311 | C5: ='BudgetSum 2-3'!D9 -> 246899 | D5: ='BudgetSum 2-3'!F9 -> 253025 | E5: ='BudgetSum 2-3'!I9 -> 13637 | F5: =SUM(B5:E5) -> 2757872
A6: Direct Expenditures | B6: ='BudgetSum 2-3'!C19 -> 2340084 | C6: ='BudgetSum 2-3'!D19 -> 328127 | D6: ='BudgetSum 2-3'!F19 -> 178934 | F6: =SUM(B6:E6) -> 2847145
A7: Difference | B7: =(B5-B6) -> -95773 | C7: =(C5-C6) -> -81228 | D7: =(D5-D6) -> 74091 | E7: =(E5-E6) -> 13637 | F7: =SUM(F5-F6) -> -89273
A8: Estimated Fund Balance - June 30, 2015 | B8: ='BudgetSum 2-3'!C81 -> 217419 | C8: ='BudgetSum 2-3'!D81 -> 59127 | D8: ='BudgetSum 2-3'!F81 -> 100710 | E8: ='BudgetSum 2-3'!I81 -> 922005 | F8: =SUM(B8:E8) -> 1299261
C9: =IF(AND(F7<0,F8>=0,ABS(F7*3)>ABS(F8)),A17,IF(AND(F7<0,F8>0,ABS(F7*3)<=ABS(F8)),A18,IF(AND(F7<0,F8<0),A17,IF(F8=0,A20,A19)))) -> Unbalanced budget, however, a deficit reduction plan is not required at this time.
A12: A deficit reduction plan is required if the local board of education adopts (or amends) the 2014-15 school district budget in which the “operating funds” listed above result in direct revenues (line 9) being less than direct expenditures (line 19) by an amount equal to or greater than one-third (1/3) of the ending fund balance (line 81).
A13: Note: The balance is determined using only the four funds listed above. That is, if the estimated ending fund balance is less than three times the deficit spending, the district must adopt and file with ISBE a deficit reduction plan to balance the shortfall within three years.
A14: The School Code, Section 17-1 (105 ILCS 5/17-1) - If the 2013-2014 Annual Financial Report (AFR) reflects a deficit as defined above (page 36), then the school district shall adopt and submit a deficit reduction plan (found here on page 20-24) to ISBE within 30 days after acceptance of the AFR.
A15: The deficit reduction plan, if required, is developed using ISBE guidelines and format.
A17: Unbalanced budget, a deficit reduction plan must be adopted and submitted concurrently with this budget. This deficit reduction plan must result in a balanced budget by the last year of the attached plan, as adopted by the local board of education. (Tab: Deficit BudgetSum Calc 20) | F17: Deficit reduction plan is required.
A18: Unbalanced budget, however, a deficit reduction plan is not required at this time. | F18: Deficit reduction plan is not required.
A19: Balanced budget, no deficit reduction plan is required. | F19: Congratulations! You have a balanced budget.
A20: To determine if the budget is balanced, complete all pages of the budget first. | F20: Budget form Incomplete.

Sheet DefReductPlan 20-24
C1: DEFICIT REDUCTION PLAN | W1: SUMMARY
C2: ESTIMATED BUDGET | H2: ESTIMATED BUDGET | M2: ESTIMATED BUDGET | R2: ESTIMATED BUDGET | W2: BUDGET ADDENDUM - DEFICIT REDUCTION PLAN
A3: =Cover!G13&" "&Cover!G14 -> PAW PAW CUSD #271 47-052-2710-26 | C3: FY2014-15 | H3: FY2015-16 | M3: FY2016-17 | R3: FY2017-18 | W3: ESTIMATED BUDGET
A4: District Number | W4: Date of Adoption:
Y5: (Enter as MM/DD/YY)
C6: Educational Fund | D6: Operations & Maintenance Fund | E6: Transportation Fund | F6: Working Cash Fund | G6: Total | H6: Educational Fund | I6: Operations & Maintenance Fund | J6: Transportation Fund | K6: Working Cash Fund | L6: Total | M6: Educational Fund | N6: Operations & Maintenance Fund | O6: Transportation Fund | P6: Working Cash Fund | Q6: Total | R6: Educational Fund | S6: Operations & Maintenance Fund | T6: Transportation Fund | U6: Working Cash Fund | V6: Total | W6: FY2014-15 | X6: FY2015-16 | Y6: FY2016-17 | Z6: FY2017-18
A7: ESTIMATED BEGINNING FUND BALANCE (must equal prior Ending Fund Balance) | C7: ='BudgetSum 2-3'!C3 -> 203192 | D7: ='BudgetSum 2-3'!D3 -> 355 | E7: ='BudgetSum 2-3'!F3 -> 26619 | F7: ='BudgetSum 2-3'!I3 -> 158368 | G7: =SUM(C7:F7) -> 388534 | H7: =C27 -> 217419 | I7: =D27 -> 59127 | J7: =E27 -> 100710 | K7: =F27 -> 922005 | L7: =SUM(H7:K7) -> 1299261 | M7: =H27 -> 217419 | N7: =I27 -> 59127 | O7: =J27 -> 100710 | P7: =K27 -> 922005 | Q7: =SUM(M7:P7) -> 1299261 | R7: =M27 -> 217419 | S7: =N27 -> 59127 | T7: =O27 -> 100710 | U7: =P27 -> 922005 | V7: =SUM(R7:U7) -> 1299261 | W7: =G7 -> 388534 | X7: =L7 -> 1299261 | Y7: =Q7 -> 1299261 | Z7: =V7 -> 1299261
A8: RECEIPTS/REVENUES | B8: Acct No.
A9: LOCAL SOURCES | B9: 1000 | C9: ='BudgetSum 2-3'!C5 -> 1657749 | D9: ='BudgetSum 2-3'!D5 -> 246899 | E9: ='BudgetSum 2-3'!F5 -> 98025 | F9: ='BudgetSum 2-3'!I5 -> 13637 | G9: =SUM(C9:F9) -> 2016310 | L9: =SUM(H9:K9) -> 0 | Q9: =SUM(M9:P9) -> 0 | V9: =SUM(R9:U9) -> 0 | W9: =G9 -> 2016310 | X9: =L9 -> 0 | Y9: =Q9 -> 0 | Z9: =V9 -> 0
A10: FLOW-THROUGH RECEIPTS/REVENUES FROM ONE DISTRICT TO ANOTHER DISTRICT | B10: 2000 | C10: ='BudgetSum 2-3'!C6 -> 0 | D10: ='BudgetSum 2-3'!D6 -> 0 | E10: ='BudgetSum 2-3'!F6 -> 0 | G10: =SUM(C10:F10) -> 0 | L10: 0 | Q10: =SUM(M10:P10) -> 0 | V10: =SUM(R10:U10) -> 0 | W10: =G10 -> 0 | X10: =L10 -> 0 | Y10: =Q10 -> 0 | Z10: =V10 -> 0
A11: STATE SOURCES | B11: 3000 | C11: ='BudgetSum 2-3'!C7 -> 434000 | D11: ='BudgetSum 2-3'!D7 -> 0 | E11: ='BudgetSum 2-3'!F7 -> 155000 | F11: ='BudgetSum 2-3'!I7 -> 0 | G11: =SUM(C11:F11) -> 589000 | L11: 0 | Q11: =SUM(M11:P11) -> 0 | V11: =SUM(R11:U11) -> 0 | W11: =G11 -> 589000 | X11: =L11 -> 0 | Y11: =Q11 -> 0 | Z11: =V11 -> 0
A12: FEDERAL SOURCES | B12: 4000 | C12: ='BudgetSum 2-3'!C8 -> 152562 | D12: ='BudgetSum 2-3'!D8 -> 0 | E12: ='BudgetSum 2-3'!F8 -> 0 | F12: ='BudgetSum 2-3'!I8 -> 0 | G12: =SUM(C12:F12) -> 152562 | L12: 0 | Q12: =SUM(M12:P12) -> 0 | V12: =SUM(R12:U12) -> 0 | W12: =G12 -> 152562 | X12: =L12 -> 0 | Y12: =Q12 -> 0 | Z12: =V12 -> 0
A13: Total Receipts/Revenues | C13: =SUM(C9:C12) -> 2244311 | D13: =SUM(D9:D12) -> 246899 | E13: =SUM(E9:E12) -> 253025 | F13: =SUM(F9:F12) -> 13637 | G13: =SUM(C13:F13) -> 2757872 | H13: =SUM(H9:H12) -> 0 | I13: =SUM(I9:I12) -> 0 | J13: =SUM(J9:J12) -> 0 | K13: =SUM(K9:K12) -> 0 | L13: 0 | M13: =SUM(M9:M12) -> 0 | N13: =SUM(N9:N12) -> 0 | O13: =SUM(O9:O12) -> 0 | P13: =SUM(P9:P12) -> 0 | Q13: =SUM(M13:P13) -> 0 | R13: =SUM(R9:R12) -> 0 | S13: =SUM(S9:S12) -> 0 | T13: =SUM(T9:T12) -> 0 | U13: =SUM(U9:U12) -> 0 | V13: =SUM(R13:U13) -> 0 | W13: =G13 -> 2757872 | X13: =L13 -> 0 | Y13: =Q13 -> 0 | Z13: =V13 -> 0
A14: DISBURSEMENTS/EXPENDITURES | B14: Funct No.
A15: INSTRUCTION | B15: 1000 | C15: ='BudgetSum 2-3'!C13 -> 1353535 | G15: =SUM(C15:F15) -> 1353535 | L15: 0 | Q15: =SUM(M15:P15) -> 0 | V15: =SUM(R15:U15) -> 0 | W15: =G15 -> 1353535 | X15: =L15 -> 0 | Y15: =Q15 -> 0 | Z15: =V15 -> 0
A16: SUPPORT SERVICES | B16: 2000 | C16: ='BudgetSum 2-3'!C14 -> 797163 | D16: ='BudgetSum 2-3'!D14 -> 328127 | E16: ='BudgetSum 2-3'!F14 -> 178934 | G16: 1304224 | L16: 0 | Q16: 0 | V16: 0 | W16: 1304224 | X16: 0 | Y16: 0 | Z16: 0
A17: COMMUNITY SERVICES | B17: 3000 | C17: ='BudgetSum 2-3'!C15 -> 0 | D17: ='BudgetSum 2-3'!D15 -> 0 | E17: ='BudgetSum 2-3'!F15 -> 0 | G17: 0 | L17: 0 | Q17: 0 | V17: 0 | W17: 0 | X17: 0 | Y17: 0 | Z17: 0
A18: PAYMENTS TO OTHER DISTRICTS & GOVT. UNITS | B18: 4000 | C18: ='BudgetSum 2-3'!C16 -> 189386 | D18: ='BudgetSum 2-3'!D16 -> 0 | E18: ='BudgetSum 2-3'!F16 -> 0 | G18: 189386 | L18: 0 | Q18: 0 | V18: 0 | W18: 189386 | X18: 0 | Y18: 0 | Z18: 0
A19: DEBT SERVICES | B19: 5000 | C19: ='BudgetSum 2-3'!C17 -> 0 | D19: ='BudgetSum 2-3'!D17 -> 0 | E19: ='BudgetSum 2-3'!F17 -> 0 | G19: 0 | L19: 0 | Q19: 0 | V19: 0 | W19: 0 | X19: 0 | Y19: 0 | Z19: 0
A20: PROVISION FOR CONTINGENCIES | B20: 6000 | C20: ='BudgetSum 2-3'!C18 -> 0 | D20: ='BudgetSum 2-3'!D18 -> 0 | E20: ='BudgetSum 2-3'!F18 -> 0 | G20: 0 | L20: 0 | Q20: 0 | V20: 0 | W20: 0 | X20: 0 | Y20: 0 | Z20: 0
A21: Total Disbursements/Expenditures | C21: =SUM(C15:C20) -> 2340084 | D21: =SUM(D15:D20) -> 328127 | E21: =SUM(E15:E20) -> 178934 | G21: 2847145 | H21: =SUM(H15:H20) -> 0 | I21: =SUM(I15:I20) -> 0 | J21: =SUM(J15:J20) -> 0 | L21: 0 | M21: =SUM(M15:M20) -> 0 | N21: =SUM(N15:N20) -> 0 | O21: =SUM(O15:O20) -> 0 | Q21: 0 | R21: =SUM(R15:R20) -> 0 | S21: =SUM(S15:S20) -> 0 | T21: =SUM(T15:T20) -> 0 | V21: 0 | W21: 2847145 | X21: 0 | Y21: 0 | Z21: 0
A22: Excess of Receipts/Revenue Over/(Under) Disbursements/Expenditures | C22: =SUM(C13-C21) -> -95773 | D22: =SUM(D13-D21) -> -81228 | E22: =SUM(E13-E21) -> 74091 | F22: =SUM(F13-F21) -> 13637 | G22: =G13-G21 -> -89273 | H22: =SUM(H13-H21) -> 0 | I22: =SUM(I13-I21) -> 0 | J22: =SUM(J13-J21) -> 0 | K22: =SUM(K13-K21) -> 0 | L22: =SUM(H22:K22) -> 0 | M22: =SUM(M13-M21) -> 0 | N22: =SUM(N13-N21) -> 0 | O22: =SUM(O13-O21) -> 0 | P22: =SUM(P13-P21) -> 0 | Q22: =SUM(M22:P22) -> 0 | R22: =SUM(R13-R21) -> 0 | S22: =SUM(S13-S21) -> 0 | T22: =SUM(T13-T21) -> 0 | U22: =SUM(U13-U21) -> 0 | V22: =SUM(R22:U22) -> 0 | W22: -89273 | X22: 0 | Y22: 0 | Z22: 0
A23: OTHER SOURCES/USES OF FUNDS
A24: OTHER SOURCES OF FUNDS (7000) | C24: ='BudgetSum 2-3'!C46 -> 250000 | D24: ='BudgetSum 2-3'!D46 -> 180000 | E24: ='BudgetSum 2-3'!F46 -> 0 | F24: ='BudgetSum 2-3'!I46 -> 1000000 | G24: =SUM(C24:F24) -> 1430000 | L24: =SUM(H24:K24) -> 0 | Q24: =SUM(M24:P24) -> 0 | V24: =SUM(R24:U24) -> 0 | W24: =G24 -> 1430000 | X24: =L24 -> 0 | Y24: =Q24 -> 0 | Z24: =V24 -> 0
A25: OTHER USES OF FUNDS (8000) | C25: ='BudgetSum 2-3'!C79 -> 140000 | D25: ='BudgetSum 2-3'!D79 -> 40000 | E25: ='BudgetSum 2-3'!F79 -> 0 | F25: ='BudgetSum 2-3'!I79 -> 250000 | G25: =SUM(C25:F25) -> 430000 | L25: =SUM(H25:K25) -> 0 | Q25: =SUM(M25:P25) -> 0 | V25: =SUM(R25:U25) -> 0 | W25: =G25 -> 430000 | X25: =L25 -> 0 | Y25: =Q25 -> 0 | Z25: =V25 -> 0
A26: TOTAL OTHER SOURCES/USES OF FUNDS | C26: =SUM(C24-C25) -> 110000 | D26: 140000 | E26: 0 | F26: 750000 | G26: 1000000 | H26: 0 | I26: =SUM(I24-I25) -> 0 | J26: 0 | K26: 0 | L26: =SUM(H26:K26) -> 0 | M26: 0 | N26: 0 | O26: 0 | P26: 0 | Q26: =SUM(M26:P26) -> 0 | R26: 0 | S26: 0 | T26: 0 | U26: 0 | V26: =SUM(R26:U26) -> 0 | W26: =G26 -> 1000000 | X26: =L26 -> 0 | Y26: =Q26 -> 0 | Z26: =V26 -> 0
A27: ESTIMATED ENDING FUND BALANCE | C27: =C7+C22+C26 -> 217419 | D27: =D7+D22+D26 -> 59127 | E27: 100710 | F27: 922005 | G27: 1299261 | H27: 217419 | I27: 59127 | J27: 100710 | K27: 922005 | L27: =SUM(H27:K27) -> 1299261 | M27: 217419 | N27: 59127 | O27: 100710 | P27: 922005 | Q27: 1299261 | R27: 217419 | S27: 59127 | T27: 100710 | U27: 922005 | V27: =V7+V22+V26 -> 1299261 | W27: =G27 -> 1299261 | X27: =L27 -> 1299261 | Y27: =Q27 -> 1299261 | Z27: =V27 -> 1299261

Sheet Bckgrnd-Assumpt 25-26
B1: Deficit Reduction Plan-Background/Assumptions
B2: Fiscal Year 2015 through Fiscal Year 2018
B4: =Cover!G13&" "&Cover!G14 -> PAW PAW CUSD #271 47-052-2710-26
B5: Please complete the following schedule and include a brief description to identify any areas of the budget that will be impacted from one year to the next. If the deficit reduction plan relies upon new local revenues, identify contingencies for further budget reductions which will be enacted in the event those new revenues are not available. For additional information, please see:
B6: www.isbe.net/sfms/budget/2014/budget.htm
A8: 1 | B8: Background and Narrative of Budget Reductions:
A11: 2 | B11: Assumptions Used in the Deficit Reduction Plan:
B14: - Foundation Levels for General State Aid:
B17: - Equal Assessed Valuation and Tax Rates:
B20: - Employee Salaries and Benefits:
B23: - Short and Long Term Borrowing:
B26: - Educational Impact:
B30: - Other Assumptions:
B33: - Has the district considered shared services or outsourcing (Ex: Transportation, Insurance) If yes please explain:

Sheet AC 27
A1: 0
A2: ESTIMATED LIMITATION OF ADMINISTRATIVE COSTS
A3: (For Local Use Only)
A4: This is an estimated Limitation of Administrative Costs Worksheet only and will not be accepted for Official Submission of the Limitation of
A5: Administrative Costs Worksheet.
A7: The worksheet is intended for use during the budgeting process to estimate the district's percent increase of FY2015 budgeted expenditures over FY2014 actual expenditures.
A8: Budget information is copied to this page. Insert the prior year estimated actual expenditures to compute the estimated percentage increase (decrease).
A10: The official Limitation of Administrative Costs Worksheet is attached to the end of the Annual | H10: An official Limitation of Administrative Costs Worksheet can
A11: Financial Report (ISBE Form 50-35) and may be submitted in conjunction with that report. | H11: also be found on the ISBE website at:
H12: Limitation of Administrative Costs
A14: ESTIMATED LIMITATION OF ADMINISTRATIVE COSTS WORKSHEET | G14: School District Name: | H14: =Cover!G13 -> PAW PAW CUSD #271
G15: RCDT Number: | H15: =Cover!G14 -> 47-052-2710-26
A16: (Section 17-1.5 of the School Code)
E17: Estimated Actual Expenditures, Fiscal Year 2014 | H17: Budgeted Expenditures, Fiscal Year 2015
E18: (10) | F18: (20) | H18: (10) | I18: (20)
C19: Description | D19: Funct. No. | E19: Educational | F19: Operations & Maintenance | G19: Total | H19: Educational | I19: Operations & Maintenance | J19: Total
B20: 1 | C20: Executive Administration Services | D20: 2320 | G20: =SUM(E20:F20) -> 0 | H20: ='EstExp 11-17'!K50 -> 100423 | J20: =SUM(H20:I20) -> 100423
B21: 2 | C21: Special Area Administration Services | D21: 2330 | G21: 0 | H21: ='EstExp 11-17'!K51 -> 0 | J21: 0
B22: 3 | C22: Other Support Services - School Administration | D22: 2490 | G22: 0 | H22: ='EstExp 11-17'!K56 -> 0 | J22: 0
B23: 4 | C23: Direction of Business Support Services | D23: 2510 | G23: 0 | H23: ='EstExp 11-17'!K59 -> 0 | I23: ='EstExp 11-17'!K122 -> 0 | J23: 0
B24: 5 | C24: Internal Services | D24: 2570 | G24: 0 | H24: ='EstExp 11-17'!K64 -> 0 | J24: 0
B25: 6 | C25: Direction of Central Support Services | D25: 2610 | G25: 0 | H25: ='EstExp 11-17'!K67 -> 0 | J25: 0
B26: 7 | C26: Deduct - Early Retirement or other pension obligations required by state law and include above | G26: 0 | J26: 0
B27: 8 | C27: Totals | E27: =SUM(E20:E25)-E26 -> 0 | F27: 0 | G27: 0 | H27: 100423 | I27: 0 | J27: 100423
B28: 9 | C28: Estimated Percent Increase (Decrease) for FY2015 (Budgeted) over FY2014 (Actual) | J28: =IF(AND(G27>0,J27>0),(((J27-G27)/G27)),"Enter Actual Data!") -> Enter Actual Data!

Sheet VendContract 28
A1: REPORTING OF PUBLIC VENDOR CONTRACTS OF $1,000 OR MORE
A4: =Cover!G13& " "& Cover!G14 -> PAW PAW CUSD #271 47-052-2710-26
A5: In accordance with the School Code, Section 10-20.21, all school districts are required to file a report listing ‘vendor contracts’ as an attachment to their budget. In this context, the term "vendor contracts" refers to "all contracts and agreements that pertain to goods and services that were intended to generate additional revenue and other remunerations for the school district in excess of $1,000, including without limitation vending machine contracts, sports and other attire, class rings, and photographic services. The report is to list information regarding such contracts for the fiscal year immediately preceding the fiscal year of the budget. All such contracts executed on or after July 1, 2007 must be approved by the school board.
A6: See: School Code, Section 10-20.21 - Contracts
A7: (Sheet is unprotected and can be re-formatted as needed, but must be used for submission)
A8: Name of Vendor | B8: Product or Service Provided | C8: Net Revenue | D8: Non-Monetary Remuneration | E8: Purpose of Proceeds | F8: Distribution Method and Recipient of Non-Monetary Remunerations Distributed
A9: Fannie Mae | B9: Candy | C9: 1222 | E9: Prom Fundraising
E10: Class of 2015
A11: Rite Bite | B11: Butterbraids | C11: 1504 | E11: Prom Fundraising
E12: Class of 2016

Sheet Ref 29
B1: Reference Description
A3: 1 | B3: Each fund balance should correspond to the fund balance reflected on the books as of June 30th - Balance Sheet Accounts #720 and #730 (audit figures, if available).
A5: 2 | B5: Accounting and Financial Reporting for Certain Grants and Other Financial Assistance. The "On-Behalf" Payments should only be reflected on this page (Budget Summary, Lines 10 and 20).
A7: 3 | B7: Requires the secretary of the school board to notify the county clerk (within 30 days of the transfer approval) to abate an equal amount of taxes to be next extended. See Sec. 10-22.14 & 17-2.11.
A8: 3a | B8: Requires notification to the county clerk to abate an equal amount from taxes next extended. See section 10-22.14
A9: 4 | B9: Principal on Bonds Sold:
B10: (1) Funding Bonds are to be entered in the fund or funds in which the liability occurs.
B11: (2) Refunding Bonds can be entered in the Debt Services Fund only.
B12: (3) Building Bonds can be entered in the Capital Projects Fund only.
B13: (4) Fire Prevention and Safety Bonds can be entered in the Fire Prevention & Safety Fund only.
A15: 5 | B15: The proceeds from the sale of school sites, buildings, or other real estate shall be used first to pay the principal and interest on any outstanding bonds on the property being sold, and after all such bonds have been retired, the remaining proceeds from the sale next shall be used by the school board to meet any urgent district needs as determined under Sections 2-3.12 and 17-2.11 of the School Code. Once these issues have been addressed, any remaining proceeds may be used for any other authorized purpose and for deposit into any district fund.
A17: 6 | B17: The School Code, Section 10-22.44 prohibits the transfer of interest earned on the investment of "any funds for purposes of Illinois Municipal Retirement under the Pension Code." This prohibition does not include funds for Social Security and Medicare-only purposes. For additional requirements on interest earnings, see 23 Illinois Administrative Code, Part 100, Section 100.50.
A19: 7 | B19: Cash plus investments must be greater than or equal to zero.
A21: 8 | B21: For cash basis budgets, this total will equal the Budget Summary - Total Direct Receipts/Revenues (Line 9) plus Total Other Sources of Funds (Line 46).
A23: 9 | B23: For cash basis budgets, this total will equal the Budget Summary - Total Direct Disbursements/Expenditures (Line 19) plus Total Other Uses of Funds (Line 79).
A25: 10 | B25: Working Cash Fund loans may be made to any district fund for which taxes are levied (Section 20-5 of the School Code).
A27: 11 | B27: Include revenue accounts 1110 through 1115, 1117,1118 & 1120.
A29: 12 | B29: The School Code Section 17-2.2c. Tax for leasing educational facilities or computer technology or both, and for temporary relocation expense purposes.
A31: 13 | B31: Corporate personal property replacement tax revenue must be first applied to the Municipal Retirement/Social Security Fund to replace tax revenue lost due to the abolition of the corporate personal property tax (30 ILCS 115/12). This provision does not apply to taxes levied for Medicare-Only purposes.
A33: 14 | B33: Only tuition payments made to private facilities. See Functions 4200 or 4400 for estimated public facility disbursements/expenditures.
A35: 15 | B35: Payment towards the retirement of lease/purchase agreements or bonded/other indebtedness (principal only) otherwise reported within the fund - e.g.: alternate revenue bonds. (Describe & Itemize)
A37: 16 | B37: Only abolishment of Working Cash Fund must transfer its funds directly to the Educational Fund upon adoption of a resolution and
B38: at the close of the current school Year (see 105 ILCS 5/20-8 for further explanation)
B39: Only abatement of working cash fund can transfer its funds to any fund in most need of money
B40: (see 105 ILCS 5/20-10 for further explanation)

Sheet Balancing
A1: CHECK FOR ERRORS
A2: This worksheet checks various cells to assure that selected items are in balance.
A3: Out-of-balance conditions are accompanied by an error message.
A4: Errors must be corrected before the budget is finalized and submitted to ISBE.
B5: Budget Item References | C5: Message
B6: Is Deficit Reduction Plan Required? | C6: =IF(AND('DeficitBudgetSum Calc 19'!F7<0,'DeficitBudgetSum Calc 19'!F8>=0,ABS('DeficitBudgetSum Calc 19'!F7*3)>ABS('DeficitBudgetSum Calc 19'!F8)),'DeficitBudgetSum Calc 19'!F17,IF(AND('DeficitBudgetSum Calc 19'!F7<0,'DeficitBudgetSum Calc 19'!F8>0,ABS('DeficitBudgetSum Calc 19'!F7*3)<=ABS('DeficitBudgetSum Calc 19'!F8)),'DeficitBudgetSum Calc 19'!F18,IF(AND('DeficitBudgetSum Calc 19'!F7<0,'DeficitBudgetSum Calc 19'!F8<0),'DeficitBudgetSum Calc 19'!F17,IF('DeficitBudgetSum Calc 19'!F8=0,'DeficitBudgetSum Calc 19'!F20,'DeficitBudgetSum Calc 19'!F19)))) -> Deficit reduction plan is not required.
B7: If required, is Deficit Reduction Plan Completed (Page: DefReductPlan 20-24)? | C7: =IF(AND(C6='DeficitBudgetSum Calc 19'!F17,'DefReductPlan 20-24'!Z22>0),"Budget Plan Completed",IF(AND(C6='DeficitBudgetSum Calc 19'!F17,'DefReductPlan 20-24'!Z22=0),"Please complete the deficit reduction plan prior to submission.","")) -> 
A8: 1 | B8: Cover Page - CASH or ACCRUAL
B9: Check one type of Accounting Basis used on the Cover sheet. | C9: =IF(Cover!B5="X","CASH",IF(Cover!B6="X","ACCRUAL ","PLEASE CHECK AN ACCOUNTING BASIS.")) -> CASH
A10: 2 | B10: Budget Summary: Other Sources (Page BudgetSum 2-3 - Acct 7000), must equal Other Uses (BudgetSum 2-3 - Acct. 8000).
B11: Estimated Beginning Fund Balance July,1 2014 for all Funds (Cells C3 - K3)(Line must have a number or zero) | C11: =IF(AND(ISNUMBER('BudgetSum 2-3'!C3),ISNUMBER('BudgetSum 2-3'!D3),ISNUMBER('BudgetSum 2-3'!E3),ISNUMBER('BudgetSum 2-3'!F3),ISNUMBER('BudgetSum 2-3'!G3),ISNUMBER('BudgetSum 2-3'!H3),ISNUMBER('BudgetSum 2-3'!I3),ISNUMBER('BudgetSum 2-3'!J3),ISNUMBER('BudgetSum 2-3'!K3)),"OK","CHECK ERROR") -> OK
B12: Transfer Among Funds (Funds 10, 20, 40 - Acct 7130 - Cells C29, D29, F29), must equal (Funds 10, 20 & 40 - Acct 8130 - Cells C52, D52, F52). | C12: =IF(SUM('BudgetSum 2-3'!C29:D29,'BudgetSum 2-3'!F29)<>SUM('BudgetSum 2-3'!C52:D52,'BudgetSum 2-3'!F52),"Check Error!","OK") -> OK
B13: Transfer of Interest (Funds 10 thru 90 - Acct 7140 - Cells C30:K30), must equal (Funds 10 thru 60, & 80 - Acct 8140 - Cells C53:H53, J53). | C13: =IF(SUM('BudgetSum 2-3'!C30:K30)<>SUM('BudgetSum 2-3'!C53:J53),"Check Error!","OK") -> OK
B14: Transfer to Debt Service to Pay Principal on Capital Leases (Fund 30 - Acct 7400 - Cell E39) must equal (Funds 10, 20 & 60 - Acct 8400 Cells C57:H60). | C14: =IF(('BudgetSum 2-3'!E39)<>SUM('BudgetSum 2-3'!C57:H60),"Check Error!","OK") -> OK
B15: Transfer to Debt Service to Pay Interest on Capital Leases (Fund 30 - Acct 7500 - Cell E40) must equal (Funds 10, 20 & 60 - Acct 8500 - Cells C61:H64). | C15: =IF(('BudgetSum 2-3'!E40)<>SUM('BudgetSum 2-3'!C61:H64),"Check Error!","OK") -> OK
B16: Transfer to Debt Service Fund to Pay Principal on Revenue Bonds (Fund 30 - Acct 7600 - Cell E41) must equal (Funds 10 & 20 - Acct 8600 - Cells C65:D68). | C16: =IF(('BudgetSum 2-3'!E41)<>SUM('BudgetSum 2-3'!C65:D68),"Check Error!","OK") -> OK
B17: Transfer to Debt Service to Pay Interest on Revenue Bonds (Fund 30 - Acct 7700 - Cell E42) must equal (Funds 10 & 20 - Acct 8700 - Cells C69:D72). | C17: =IF(('BudgetSum 2-3'!E42)<>SUM('BudgetSum 2-3'!C69:D72),"Check Error!","OK") -> OK
B18: Transfer to Capital Projects Fund (Fund 60 - Acct 7800 - Cell H43) must equal (Fund 10 & 20, Acct 8800 - Cells C73:D76). | C18: =IF(('BudgetSum 2-3'!H43)<>SUM('BudgetSum 2-3'!C73:D76),"Check Error!","OK") -> OK
A19: 3 | B19: Summary of Cash Transactions: Beginning Cash Balance on Hand July 1, 2014, (CashSum 4, All Funds), cannot be negative.
B20: Educational (Fund 10 - Cell C3) | C20: =IF('CashSum 4'!$C$3<0,"Check Error","OK") -> OK
B21: Operations & Maintenance (Fund 20 - Cell D3) | C21: =IF('CashSum 4'!$D$3<0,"Check Error","OK") -> OK
B22: Debt Service (Fund 30 - Cell E3) | C22: =IF('CashSum 4'!$E$3<0,"Check Error","OK") -> OK
B23: Transportation (Fund 40 - Cell F3) | C23: =IF('CashSum 4'!$F$3<0,"Check Error","OK") -> OK
B24: Municipal Retirement/Social Security (Fund 50 - Cell G3) | C24: =IF('CashSum 4'!$G$3<0,"Check Error","OK") -> OK
B25: Capital Projects (Fund 60 - Cell H3) | C25: =IF('CashSum 4'!$H$3<0,"Check Error","OK") -> OK
B26: Working Cash (Fund 70 - Cell I3) | C26: =IF('CashSum 4'!$I$3<0,"Check Error","OK") -> OK
B27: Tort (Fund 80 - Cell J3) | C27: =IF('CashSum 4'!$J$3<0,"Check Error","OK") -> OK
B28: Fire Prevention & Safety (Fund 90 - Cell K3) | C28: =IF('CashSum 4'!$K$3<0,"Check Error","OK") -> OK
A29: 4 | B29: Summary of Cash Transactions: Ending Cash Balance on Hand June 30, 2015, (Page CashSum 4 - All Funds), cannot be negative.
B30: Educational (Fund 10 - Cell C21) | C30: =IF('CashSum 4'!$C$21<0,"Check Error!","OK") -> OK
B31: Operations & Maintenance (Fund 20 - Cell D21) | C31: =IF('CashSum 4'!$D$21<0,"Check Error!","OK") -> OK
B32: Debt Service (Fund 30 - Cell E21) | C32: =IF('CashSum 4'!$E$21<0,"Check Error!","OK") -> OK
B33: Transportation (Fund 40 - F21) | C33: =IF('CashSum 4'!$F$21<0,"Check Error!","OK") -> OK
B34: Municipal Retirement/Social Security (Fund 50 - Cell G21) | C34: =IF('CashSum 4'!$G$21<0,"Check Error!","OK") -> OK
B35: Capital Projects (Fund 60 - H21) | C35: =IF('CashSum 4'!$H$21<0,"Check Error!","OK") -> OK
B36: Working Cash (Fund 70 - Cell I21) | C36: =IF('CashSum 4'!$I$21<0,"Check Error!","OK") -> OK
B37: Tort (Fund 80 - Cell J21) | C37: =IF('CashSum 4'!$J$21<0,"Check Error!","OK") -> OK
B38: Fire Prevention & Safety (Fund 90 - Cell K21) | C38: =IF('CashSum 4'!$K$21<0,"Check Error!","OK") -> OK
A39: 5 | B39: Summary of Cash Transactions: Other Receipts, (Page CashSum 4), must equal Other Disbursements, (Page CashSum 4).
B40: Interfund Loans Payable (Funds 10:60, 80, 90 - Acct 411 - Cells C6:H6, J6:K6) must equal Interfund Loans Receivable (Funds 10:20, 40, 70 - Acct 141 - Cells C15:D15, F15, I15). | C40: =IF(SUM('CashSum 4'!C6:K6)<>SUM('CashSum 4'!C15:K15),"Check Error!","OK") -> OK
B41: Interfund Loans Receivable (Funds 10, 20, 40 & 70 - Acct 141 - Cells C7:D7, F7, I7) must equal Interfund Loans Payable (Funds 10:60, 80, 90 - Acct 411 - Cells C16:H16, J16, K16). | C41: =IF(SUM('CashSum 4'!C7:K7)<>SUM('CashSum 4'!C16:K16),"Check Error!","OK") -> OK
B43: End of Balancing

Sheet B15 (hidden)
A1: School District Name | B1: =Cover!G13 -> PAW PAW CUSD #271
A2: School District ID | B2: =Cover!G14 -> 47-052-2710-26
A3: School District/Joint Agreement | B3: S
A4: Accounting Basis | B4: =Balancing!C9 -> CASH
A5: 1 | B5: ='BudgetSum 2-3'!C18 -> 0 | C5: =A5-B5 -> 1
A6: 2 | B6: ='BudgetSum 2-3'!D18 -> 0 | C6: =A6-B6 -> 2
A7: 3 | B7: ='BudgetSum 2-3'!E18 -> 0 | C7: 3
A8: 4 | B8: ='BudgetSum 2-3'!F18 -> 0 | C8: 4
A9: 5 | B9: ='BudgetSum 2-3'!G18 -> 0 | C9: 5
A10: 6 | B10: ='BudgetSum 2-3'!H18 -> 0 | C10: 6
A11: 7 | B11: ='BudgetSum 2-3'!K18 -> 0 | C11: 7
A12: 8 | B12: ='CashSum 4'!C4 -> 2494311 | C12: -2494303
A13: 9 | B13: ='CashSum 4'!C7 -> 0 | C13: 9
A14: 10 | B14: ='CashSum 4'!C10 -> 0 | C14: 10
A15: 11 | B15: ='CashSum 4'!C11 -> 2494311 | C15: -2494300
A16: 12 | B16: ='CashSum 4'!C12 -> 2606140 | C16: -2606128
A17: 13 | B17: ='CashSum 4'!C13 -> 2480084 | C17: -2480071
A18: 14 | B18: ='CashSum 4'!C15 -> 0 | C18: 14
A19: 15 | B19: ='CashSum 4'!C16 -> 0 | C19: 15
A20: 16 | D20: Close 2008
A21: 17 | B21: ='CashSum 4'!C17 -> 0 | C21: 17
A22: 18 | B22: ='CashSum 4'!C8 -> 0 | C22: 18
A23: 19 | D23: Close 2008
A24: 20 | D24: Close 2008
A25: 21 | B25: ='CashSum 4'!C18 -> 0 | C25: 21
A26: 22 | B26: ='CashSum 4'!C19 -> 0 | C26: 22
A27: 23 | B27: ='CashSum 4'!C20 -> 2480084 | C27: -2480061
A28: 24 | B28: ='CashSum 4'!C21 -> 126056 | C28: -126032
A29: 25 | B29: ='CashSum 4'!D4 -> 426899 | C29: -426874
A30: 26 | B30: ='CashSum 4'!D7 -> 0 | C30: 26
A31: 27 | B31: ='CashSum 4'!D10 -> 0 | C31: 27
A32: 28 | B32: ='CashSum 4'!D11 -> 426899 | C32: -426871
A33: 29 | B33: ='CashSum 4'!D12 -> 448004 | C33: -447975
A34: 30 | B34: ='CashSum 4'!D13 -> 368127 | C34: -368097
A35: 31 | B35: ='CashSum 4'!D15 -> 0 | C35: 31
A36: 32 | B36: ='CashSum 4'!D16 -> 0 | C36: 32
A37: 33 | D37: Close 2008
A38: 34 | B38: ='CashSum 4'!D17 -> 0 | C38: 34
A39: 35 | D39: Close 2008
A40: 36 | D40: Close 2008
A41: 37 | D41: Close 2008
A42: 38 | B42: ='CashSum 4'!D18 -> 0 | C42: 38
A43: 39 | B43: ='CashSum 4'!D19 -> 0 | C43: 39
A44: 40 | B44: ='CashSum 4'!D20 -> 368127 | C44: -368087
A45: 41 | B45: ='CashSum 4'!D21 -> 79877 | C45: -79836
A46: 42 | B46: ='CashSum 4'!E4 -> 543268 | C46: -543226
A47: 43 | B47: ='CashSum 4'!E10 -> 0 | C47: 43
A48: 44 | B48: ='CashSum 4'!E11 -> 543268 | C48: -543224
A49: 45 | B49: ='CashSum 4'!E12 -> 559314 | C49: -559269
A50: 46 | B50: ='CashSum 4'!E13 -> 517300 | C50: -517254
A51: 47 | B51: ='CashSum 4'!E16 -> 0 | C51: 47
A52: 48 | D52: Close 2008
A53: 49 | D53: Close 2008
A54: 50 | B54: ='CashSum 4'!D8 -> 0 | C54: 50
A55: 51 | D55: Closed 2008
A56: 52 | B56: ='CashSum 4'!E18 -> 0 | C56: 52
A57: 53 | B57: ='CashSum 4'!E19 -> 0 | C57: 53
A58: 54 | B58: ='CashSum 4'!E20 -> 517300 | C58: -517246
A59: 55 | B59: ='CashSum 4'!E21 -> 42014 | C59: -41959
A60: 56 | B60: ='CashSum 4'!F4 -> 253025 | C60: -252969
A61: 57 | B61: ='CashSum 4'!F7 -> 0 | C61: 57
A62: 58 | B62: ='CashSum 4'!F10 -> 0 | C62: 58
A63: 59 | B63: ='CashSum 4'!F11 -> 253025 | C63: -252966
A64: 60 | B64: ='CashSum 4'!F12 -> 310607 | C64: -310547
A65: 61 | B65: ='CashSum 4'!F13 -> 178934 | C65: -178873
A66: 62 | B66: ='CashSum 4'!F15 -> 0 | C66: 62
A67: 63 | B67: ='CashSum 4'!F16 -> 0 | C67: 63
A68: 64 | D68: Close 2008
A69: 65 | B69: ='CashSum 4'!F17 -> 0 | C69: 65
A70: 66 | D70: Close 2008
A71: 67 | D71: Close 2008
A72: 68 | D72: Close 2008
A73: 69 | B73: ='CashSum 4'!F18 -> 0 | C73: =A73-B73 -> 69
A74: 70 | B74: ='CashSum 4'!F19 -> 0 | C74: 70
A75: 71 | B75: ='CashSum 4'!F20 -> 178934 | C75: -178863
A76: 72 | B76: ='CashSum 4'!F21 -> 131673 | C76: -131601
A77: 73 | B77: ='CashSum 4'!G4 -> 139891 | C77: -139818
A78: 74 | B78: ='CashSum 4'!G10 -> 0 | C78: 74
A79: 75 | B79: ='CashSum 4'!G11 -> 139891 | C79: -139816
A80: 76 | B80: ='CashSum 4'!G12 -> 158032 | C80: -157956
A81: 77 | B81: ='CashSum 4'!G13 -> 106009 | C81: -105932
A82: 78 | B82: ='CashSum 4'!G16 -> 0 | C82: 78
A83: 79 | D83: Close 2008
A84: 80 | B84: ='CashSum 4'!G17 -> 0 | C84: 80
A85: 81 | B85: 0 | C85: 81
A86: 82 | D86: Close 2008
A87: 83 | B87: ='CashSum 4'!G18 -> 0 | C87: 83
A88: 84 | B88: ='CashSum 4'!G19 -> 0 | C88: 84
A89: 85 | B89: ='CashSum 4'!G20 -> 106009 | C89: -105924
A90: 86 | B90: ='CashSum 4'!G21 -> 52023 | C90: -51937
A91: 87 | B91: ='CashSum 4'!H4 -> 40000 | C91: -39913
A92: 88 | B92: ='CashSum 4'!H10 -> 0 | C92: 88
A93: 89 | B93: ='CashSum 4'!H11 -> 40000 | C93: -39911
A94: 90 | B94: ='CashSum 4'!H12 -> 47613 | C94: -47523
A95: 91 | B95: ='CashSum 4'!H13 -> 0 | C95: 91
A96: 92 | B96: ='CashSum 4'!H16 -> 0 | C96: 92
A97: 93 | D97: Close 2008
A98: 94 | B98: ='CashSum 4'!H19 -> 0 | C98: 94
A99: 95 | B99: ='CashSum 4'!H20 -> 0 | C99: 95
A100: 96 | B100: ='CashSum 4'!H21 -> 47613 | C100: -47517
A101: 97 | B101: ='CashSum 4'!I4 -> 1013637 | C101: -1013540
A102: 98 | B102: ='CashSum 4'!I7 -> 0 | C102: 98
A103: 99 | B103: ='CashSum 4'!I10 -> 0 | C103: 99
A104: 100 | B104: ='CashSum 4'!I11 -> 1013637 | C104: -1013537
A105: 101 | B105: ='CashSum 4'!I12 -> 1358397 | C105: -1358296
A106: 102 | B106: ='CashSum 4'!I13 -> 250000 | C106: -249898
A107: 103 | B107: ='CashSum 4'!I15 -> 0 | C107: 103
A108: 104 | D108: Close 2008
A109: 105 | B109: ='CashSum 4'!I19 -> 0 | C109: 105
A110: 106 | B110: ='CashSum 4'!I20 -> 250000 | C110: -249894
A111: 107 | B111: ='CashSum 4'!I21 -> 1108397 | C111: -1108290
A112: 108 | D112: Close 2008
A113: 109 | D113: Close 2008
A114: 110 | D114: Close 2008
A115: 111 | D115: Close 2008
A116: 112 | D116: Close 2008
A117: 113 | D117: Close 2008
A118: 114 | D118: Close 2008
A119: 115 | D119: Close 2008
A120: 116 | D120: Close 2008
A121: 117 | D121: Close 2008
A122: 118 | D122: Close 2008
A123: 119 | D123: Close 2008
A124: 120 | B124: ='CashSum 4'!K4 -> 1105 | C124: -985
A125: 121 | B125: ='CashSum 4'!K10 -> 0 | C125: 121
A126: 122 | B126: ='CashSum 4'!K11 -> 1105 | C126: -983
A127: 123 | B127: ='CashSum 4'!K12 -> 1119 | C127: -996
A128: 124 | B128: ='CashSum 4'!K13 -> 0 | C128: 124
A129: 125 | B129: ='CashSum 4'!K16 -> 0 | C129: 125
A130: 126 | D130: Close 2008
A131: 127 | B131: ='CashSum 4'!K17 -> 0 | C131: 127
A132: 128 | D132: Close 2008
A133: 129 | D133: Close 2008
A134: 130 | B134: ='CashSum 4'!K19 -> 0 | C134: =A134-B134 -> 130
A135: 131 | B135: ='CashSum 4'!K20 -> 0 | C135: 131
A136: 132 | B136: ='CashSum 4'!K21 -> 1119 | C136: -987
A137: 133 | D137: Close 2008
A138: 134 | D138: Close 2008
A139: 135 | D139: Close 2008
A140: 136 | D140: Close 2008
A141: 137 | D141: Close 2008
A142: 138 | B142: ='EstExp 11-17'!H113 -> 0 | C142: 138
A143: 139 | D143: Close 2008
A144: 140 | D144: Close 2008
A145: 141 | B145: ='EstExp 11-17'!K113 -> 0 | C145: 141
A146: 142 | B146: ='EstExp 11-17'!H149 -> 0 | C146: 142
A147: 143 | B147: ='EstExp 11-17'!K149 -> 0 | C147: 143
A148: 144 | B148: ='EstExp 11-17'!H167 -> 0 | C148: 144
A149: 145 | B149: ='EstExp 11-17'!K167 -> 0 | C149: 145
A150: 146 | B150: ='EstExp 11-17'!H203 -> 0 | C150: 146
A151: 147 | B151: ='EstExp 11-17'!K203 -> 0 | C151: 147
A152: 148 | B152: ='EstExp 11-17'!H287 -> 0 | C152: 148
A153: 149 | B153: ='EstExp 11-17'!K287 -> 0 | C153: 149
A154: 150 | B154: ='EstExp 11-17'!H304 -> 0 | C154: 150
A155: 151 | B155: ='EstExp 11-17'!K304 -> 0 | C155: 151
A156: 152 | B156: ='EstExp 11-17'!H353 -> 0 | C156: 152
A157: 153 | B157: ='EstExp 11-17'!K353 -> 0 | C157: 153
A158: 154
A159: 155
A160: 156
A161: 157
A162: 158
A163: 159
A164: 160
A165: 161
A166: 162
A167: 163
A168: 164
A169: 165
A170: 166
A171: 167
A172: 168
A173: 169
A174: 170
A175: 171
A176: 172
A177: 173
A178: 174
A179: 175
A180: 176
A181: 177
A182: 178
A183: 179
A184: 180
A185: 181
A186: 182
A187: 183
A188: 184 | D188: Close 2008
A189: 185
A190: 186
A191: 187
A192: 188
A193: 189
A194: 190
A195: 191
A196: 192
A197: 193
A198: 194
A199: 195
A200: 196
... 7799 more rows
